Cogmind - Beta 13 @@@ ROGUE MODE // 2024.06.01 @ 20:26:41 Player: Benkyo Result: Heading to fleet! Performance ------------- Evolutions (9) 4500 Regions Visited (35) 7000 Robots Destroyed (510) 2550 Value Destroyed (27889) 27889 Prototype IDs (331) 6620 Alien Tech Used (15) 3000 Bonus (47984) 47984 TOTAL SCORE: 99543 Bonus ------- Triggered Max Security 1000 High Alert Combat Kills 5376 Follower Combat Kills 1738 Awakened Behemoth Slayer 1000 Network Hubs Disabled 800 Met Data Miner 300 Destroyed Z-Imprinter 1000 Triggered Deep Caves Wall 500 Exposed GOLEM Chamber 500 Met Warlord at Base 500 MAIN.C Attacked Warlord 500 Warlord Defense Kills 1008 Built Enhanced Grunts 300 A7 Reached Mainframe 300 Met R17 at Cetus 500 Used Core Reset Matrix 3000 Met Warlord at Research 2000 Integrated Exoskeleton 5000 Destroyed MAIN.C Guards 500 Met MAIN.C 5000 Destroyed MAIN.C Shell 5000 Destroyed MAIN.C 10000 Win 3000 Friendly Fire -838 Cogmind --------- Core Integrity 922/1600 Matter 550/550 Energy 334/340 System Corruption 0% Temperature Cool (0) Movement Walking (30) Location To Fleet Rendezvous Parts ------- > --- POWER (1) -------- Zero-point Reactor > --- PROPULSION (3) --- Sigix Exoskeleton > --- UTILITY (5) ------ Experimental Targeting Computer Experimental Core Analyzer Improved Armor Integrity Analyzer Advanced Weapon Cycler Experimental Force Field > --- WEAPON (2) ------- Sigix Sheargun Sigix Sheargun > --- INVENTORY (5) ---- Experimental Energy Well (600) Experimental Energy Well (600) Experimental Core Analyzer Core Cannon Peak State ------------ > --- POWER ------------ Improved Quantum Reactor > --- PROPULSION ------- Sigix Exoskeleton > --- UTILITY ---------- Experimental Core Analyzer Experimental Armor Integrity Analyzer Quantum Capacitor Experimental Force Field > --- WEAPON ----------- Core Cannon > --- INVENTORY -------- Sigix Sheargun Sigix Sheargun [Rating: 246] Favorites ----------- Power Assembled Flux Generator Engine Improved Deuterium Engine Power Core Neutrino Core Reactor Assembled Flux Generator Propulsion Assembled Alloy Leg Treads Centrium Heavy Treads Leg Assembled Alloy Leg Wheel Armored Wheel Utility High-capacity Storage Unit Device GOLEM Unit Storage High-capacity Storage Unit Processor Advanced Targeting Computer Protection Assembled Alloy Armor Artifact Phase Redirector Weapon Assembled Focal Cannon Energy Gun Zionite Phaser-S Energy Cannon Assembled Focal Cannon Ballistic Gun Assault Rifle Ballistic Cannon Assault Cannon Launcher Heavy Missile Launcher Special Weapon Plasma Cutter Impact Weapon Gravity Flail Piercing Weapon CR-A16's Behemoth Slayer Build | -11 -10 -10 -10 -9 -8 -7 -7 -7 -7 -7 -6 -6 -6 -6 -6 -5 -5 -5 -5 -5 -4 -4 -4 -4 -4 -4 -4 -4 -3 -3 -2 -2 -2 -1 -1 ------- Run | Yrd Mat Min Exi Min Mat Fac Low Low Zio Dee Pro Fac Low Low Dat Pro Fac Upp Upp War Pro Fac Was Fac Ext Cet Arc Hub Res Tes Res Qua Sec Acc Com Slots Evolved 18 | . . . . . 4 2 . . . . . 2 . . . . 2 . . . . 2 . . . . . . 2 . 2 . . 2 . Power 2 | . . . . . . 1 . . . . . . . . . . 1 . . . . . . . . . . . . . . . . . . Propulsion 4 | . . . . . . . . . . . . . . . . . . . . . . 2 . . . . . . 2 . . . . . . Utility 12 | . . . . . 4 1 . . . . . 2 . . . . 1 . . . . . . . . . . . . . 2 . . 2 . Weapon . | . . . . . . . . . . . . . . . . . . . . . . . . . . . . . . . . . . . . Parts Attached 617 | 7 2 4 5 7 35 25 6 6 7 50 20 24 13 17 1 17 6 6 13 11 6 6 5 18 14 7 6 31 8 56 40 52 76 1 9 Power 36 | 1 . . . 3 4 3 . 1 . 3 . . . . . . 1 . . 1 . . . 1 1 3 . 4 . 2 3 2 2 . 1 Engine 13 | 1 . . . 3 4 3 . . . 2 . . . . . . . . . . . . . . . . . . . . . . . . . Core 2 | . . . . . . . . 1 . . . . . . . . 1 . . . . . . . . . . . . . . . . . . Reactor 21 | . . . . . . . . . . 1 . . . . . . . . . 1 . . . 1 1 3 . 4 . 2 3 2 2 . 1 Propulsion 36 | 2 . . 2 1 5 5 . . 1 3 . . . . . . . . . . . 2 1 2 . 3 2 2 1 1 . 3 . . . Treads 27 | 2 . . 2 1 5 3 . . 1 1 . . . . . . . . . . . . . . . 3 2 2 1 1 . 3 . . . Leg 6 | . . . . . . . . . . 1 . . . . . . . . . . . 2 1 2 . . . . . . . . . . . Wheel 3 | . . . . . . 2 . . . 1 . . . . . . . . . . . . . . . . . . . . . . . . . Hover . | . . . . . . . . . . . . . . . . . . . . . . . . . . . . . . . . . . . . Flight . | . . . . . . . . . . . . . . . . . . . . . . . . . . . . . . . . . . . . Utility 461 | 2 2 2 . 2 20 12 6 5 2 29 19 24 12 16 1 16 5 5 13 8 5 4 1 15 13 1 4 21 7 45 33 42 63 1 5 Device 371 | 1 . 1 . . 8 7 3 3 1 13 15 18 8 8 1 14 5 5 12 6 5 3 1 12 13 . 3 20 7 42 33 40 60 1 2 Storage 13 | 1 1 . . 1 1 . 1 . . 2 . 1 . . . 1 . . . . . . . 2 . 1 . . . 1 . . . . . Processor 18 | . . . . . 7 1 . . . . . . . . . . . . . 1 . 1 . 1 . . . . . 1 . 1 2 . 3 Hackware . | . . . . . . . . . . . . . . . . . . . . . . . . . . . . . . . . . . . . Protection 57 | . 1 1 . 1 4 4 2 2 1 14 4 5 4 8 . 1 . . 1 1 . . . . . . 1 1 . 1 . . . . . Artifact 2 | . . . . . . . . . . . . . . . . . . . . . . . . . . . . . . . . 1 1 . . Weapon 84 | 2 . 2 3 1 6 5 . . 4 15 1 . 1 1 . 1 . 1 . 2 1 . 3 . . . . 4 . 8 4 5 11 . 3 Energy Gun 13 | . . . . . 1 . . . . 5 . . . . . . . . . 2 . . 1 . . . . . . . . . 2 . 2 Energy Cannon 27 | . . . . . 2 2 . . 1 4 . . . . . . . . . . . . . . . . . . . 5 3 2 7 . 1 Ballistic Gun 11 | 2 . 1 3 1 3 . . . 1 . . . . . . . . . . . . . . . . . . . . . . . . . . Ballistic Cannon 5 | . . . . . . 2 . . 1 2 . . . . . . . . . . . . . . . . . . . . . . . . . Launcher 8 | . . . . . . 1 . . . 4 . . . . . . . . . . . . 2 . . . . . . . 1 . . . . Special Weapon 6 | . . 1 . . . . . . 1 . . . . . . . . . . . . . . . . . . 4 . . . . . . . Impact Weapon 8 | . . . . . . . . . . . . . . . . . . . . . . . . . . . . . . 3 . 3 2 . . Slashing Weapon . | . . . . . . . . . . . . . . . . . . . . . . . . . . . . . . . . . . . . Piercing Weapon 6 | . . . . . . . . . . . 1 . 1 1 . 1 . 1 . . 1 . . . . . . . . . . . . . . Special Melee Weapon . | . . . . . . . . . . . . . . . . . . . . . . . . . . . . . . . . . . . . Unidentified Prototypes 49 | . . 1 . . . . . . . 7 . . . . . . 1 . . 5 . . . 1 . 1 1 3 . 9 3 6 11 . . Corrupted Parts 1 | . . . . . . . . . . . . . . . . . . . . . . . . . . . 1 . . . . . . . . System Corruption 2 | . . . . . . . . . . . . . . . . . . . . . . . . . . . 2 . . . . . . . . Parts Lost 51 | . . . . 3 6 5 . . . 15 . 1 1 2 . . 1 1 . 1 . . 2 2 . . . 6 . . 1 1 2 . 1 Power 8 | . . . . 1 2 . . . . 2 . . . . . . . . . . . . . 1 . . . 2 . . . . . . . Propulsion 6 | . . . . 1 . 2 . . . 2 . . . . . . . . . . . . . . . . . . . . . 1 . . . Utility 29 | . . . . . 3 1 . . . 8 . 1 1 2 . . 1 1 . 1 . . 1 1 . . . 4 . . 1 . 2 . 1 Weapon 8 | . . . . 1 1 2 . . . 3 . . . . . . . . . . . . 1 . . . . . . . . . . . . Highest Loss Streak 6 | . . . . 2 2 3 . . . 6 . 1 1 2 . . 1 1 . 1 . . 2 1 . . . 3 . . 1 1 2 . 1 To Critical Strikes 1 | . . . . 1 . . . . . . . . . . . . . . . . . . . . . . . . . . . . . . . Average Slot Usage (%) 87 | . 100 100 99 99 98 99 100 100 95 91 82 85 85 85 86 84 88 87 88 87 88 89 88 88 87 76 83 76 76 77 72 72 68 72 77 Engine 3 | . 14 14 14 13 8 15 15 13 7 6 . . . . . . . . . . . . . . . . . . . . . . . . . Core 1 | . . . . . . . . . 7 . . . . . . . 5 5 5 5 5 5 5 2 . . . . . . . . . . . Reactor 5 | . . . . . . . . . . 5 7 6 5 6 6 5 5 4 5 5 5 5 5 7 10 11 15 12 14 13 13 12 8 9 9 Treads 5 | . 28 28 28 28 18 7 7 7 8 4 . . . . . . . . . . . . . . . 7 10 10 14 14 13 12 12 . . Leg 7 | . . . . . . . . . . 4 15 13 13 13 13 12 11 11 11 11 11 21 20 21 20 4 . . . . . . . 9 9 Wheel 1 | . . . . . . 6 7 7 5 5 . . . . . . . . . . . . . . . . . . . . . . . . . Device 20 | . . . . . 19 22 22 22 19 12 18 31 25 27 26 29 35 34 29 31 29 23 21 19 14 15 20 21 19 18 18 19 17 18 18 Storage 10 | . 14 14 14 14 9 7 7 7 7 8 15 12 13 13 13 12 11 11 11 11 11 10 10 10 10 10 10 10 9 9 8 8 7 . . Processor 5 | . . . . . 15 15 15 15 15 7 . . . . . . . . . 1 5 7 10 13 13 10 10 10 9 10 5 5 7 18 23 Protection 9 | . 13 14 14 14 9 7 7 7 6 15 10 7 12 11 13 8 5 5 10 6 5 5 5 2 5 5 5 1 . . 4 4 3 . . Energy Cannon 9 | . . . . . 6 7 7 7 6 6 14 13 12 12 13 12 11 10 11 10 10 10 8 9 10 10 10 9 9 8 7 7 7 . . Ballistic Gun 2 | . 28 27 27 27 11 4 . . 1 1 . . . . . . . . . . . . . . . . . . . . . . . . . Naked Turns . | . . . . . . . . . . . . . . . . . . . . . . . . . . . . . . . . . . . . Heaviest Build 206 | 15 24 24 24 51 64 79 79 81 90 122 126 132 136 136 129 133 141 141 151 147 144 144 134 174 185 184 187 185 180 199 205 206 206 48 48 Greatest Support 255 | 40 40 40 40 40 56 51 16 16 40 60 60 80 80 60 60 80 60 80 80 80 60 120 120 120 90 160 160 160 240 240 235 245 255 70 70 Greatest Overweight (x) 38 | 2 . . . 1 1 4 4 5 5 9 2 1 2 2 2 38 2 2 1 2 2 1 1 1 2 3 2 1 . . . 1 . . . Average Overweight (x) 1 | . . . . . . 3 4 4 4 5 1 1 1 1 2 2 2 1 1 1 2 1 . . 1 1 1 . . . . . . . . Largest Inventory Capacity 25 | 8 10 10 10 20 20 20 20 20 20 20 20 20 20 20 20 20 20 20 20 20 20 20 20 25 25 25 25 25 25 25 25 25 25 5 5 Average Capacity 19 | 6 9 10 10 11 20 20 20 20 20 20 20 19 20 20 20 19 20 20 20 20 20 20 20 23 25 25 25 25 25 25 25 25 23 5 5 Most Carried 25 | 7 10 10 10 12 20 20 20 20 20 20 20 20 20 20 20 20 20 20 20 20 20 20 20 25 25 25 25 25 25 25 25 25 25 2 5 Average Carried 19 | 5 9 10 9 10 19 19 20 20 19 17 19 19 19 19 20 19 19 19 19 19 19 19 19 22 24 24 24 22 23 24 24 24 22 2 4 Final Capacity 25 | 8 10 10 10 20 20 20 20 20 20 20 20 20 20 20 20 20 20 20 20 20 20 20 20 25 25 25 25 25 25 25 25 25 5 5 5 Final Carried 25 | 7 10 10 10 12 20 20 20 20 20 20 20 20 20 20 20 20 20 20 20 20 20 20 19 25 25 25 25 23 25 25 25 25 4 2 5 Class Distribution -------------------- 44% | Golem 16% | Mutant 12% | Scavenger-Mutant 10% | Scavenger-Skirmisher 5% | Infiltrator-Golem 4% | Scavenger-Golem Dominant Class ---------------- Mutant | -10/Materials Mutant | -10/Mines Mutant | -10/Exiles Mutant | -9/Mines Mutant | -8/Materials Scavenger-Skirmisher | -7/Factory Scavenger-Skirmisher | -7/Lower Caves Scavenger-Skirmisher | -7/Lower Caves Scavenger-Skirmisher | -7/Zion Mutant | -7/Deep Caves Golem | -6/Proximity Caves Golem | -6/Factory Golem | -6/Lower Caves Golem | -6/Lower Caves Golem | -6/Data Miner Golem | -5/Proximity Caves Infiltrator-Golem | -5/Factory Golem | -5/Upper Caves Golem | -5/Upper Caves Golem | -5/Warlord Golem | -4/Proximity Caves Golem | -4/Factory Golem | -4/Waste Golem | -4/Factory Golem | -4/Extension Golem | -4/Cetus Scavenger-Golem | -4/Archives Scavenger-Mutant | -4/Hub_04(d) Scavenger-Skirmisher | -3/Research Scavenger-Skirmisher | -3/Testing Scavenger-Mutant | -2/Research Scavenger-Mutant | -2/Quarantine Skirmisher | -2/Section 7 Alien-Sigix | -1/Access Alien-Sigix | -1/Command Resources | -11 -10 -10 -10 -9 -8 -7 -7 -7 -7 -7 -6 -6 -6 -6 -6 -5 -5 -5 -5 -5 -4 -4 -4 -4 -4 -4 -4 -4 -3 -3 -2 -2 -2 -1 -1 ----------- Run | Yrd Mat Min Exi Min Mat Fac Low Low Zio Dee Pro Fac Low Low Dat Pro Fac Upp Upp War Pro Fac Was Fac Ext Cet Arc Hub Res Tes Res Qua Sec Acc Com Matter Collected 10313 | 348 486 40 131 397 931 297 230 280 39 1514 160 275 105 185 . 180 15 295 140 105 60 60 208 191 160 70 70 362 70 577 513 551 995 . 273 Remotely 1430 | . . . . . . . . . . 120 . . . . . . . . . . . . . . . . . 125 . 71 227 438 449 . . Salvage Created 30887 | 186 787 14 111 435 1506 527 222 82 . 1261 909 536 505 1074 . 750 435 260 1244 325 679 404 1392 1208 1309 271 204 2055 267 1802 2050 2207 2151 . 3719 Parts 1297 | 18 61 . 5 45 82 29 1 2 . 28 35 28 24 42 . 30 24 17 53 14 29 20 10 67 53 14 15 106 19 82 71 90 88 . 95 Haulers Intercepted 9 | . 1 . . . 5 . . . . . . . . . . . 1 . . . . . . . . . . . . 2 . . . . . Recyclers Shooed 2 | . . . . . . . . . . . . . . . . . . . . . . . . . 1 . . . . . . . 1 . . Parts Field Recycled . | . . . . . . . . . . . . . . . . . . . . . . . . . . . . . . . . . . . . Retrieved Matter . | . . . . . . . . . . . . . . . . . . . . . . . . . . . . . . . . . . . . Parts Self-Destructed 229 | . . . . . . . 1 2 . . 34 . 22 43 . 29 . 17 53 . 28 . . . . . . . . . . . . . . Prevented 3 | . . . . . . . . . . . . . . 1 . . . . . . 2 . . . . . . . . . . . . . . Kills | -11 -10 -10 -10 -9 -8 -7 -7 -7 -7 -7 -6 -6 -6 -6 -6 -5 -5 -5 -5 -5 -4 -4 -4 -4 -4 -4 -4 -4 -3 -3 -2 -2 -2 -1 -1 ------- Run | Yrd Mat Min Exi Min Mat Fac Low Low Zio Dee Pro Fac Low Low Dat Pro Fac Upp Upp War Pro Fac Was Fac Ext Cet Arc Hub Res Tes Res Qua Sec Acc Com Combat Hostiles Destroyed 438 | . 15 1 . 27 24 12 3 2 . 47 16 5 14 17 . 12 5 4 21 8 16 6 6 9 17 3 1 26 2 18 27 21 24 . 29 Guns 94 | . 15 1 . 27 14 3 . . . 4 . . . . . . . . . . . . 1 . . . . . . . . . . . 29 Cannons 250 | . . . . . 9 6 3 2 . 4 15 5 13 16 . 11 5 3 21 8 15 6 2 9 17 3 1 25 2 13 9 13 14 . . AOE 48 | . . . . . . 3 . . . 37 . . . . . . . . . . . . 3 . . . . . . . 5 . . . . Classes Destroyed 34 | 3 6 1 . 1 3 . . 3 . 4 1 1 . 1 . . . . . 1 1 . 1 . 2 . . 1 . 1 2 1 . . . Worker 17 | 2 2 . . . 4 . . . . . . . . . . . . . . . . . . . . . . 3 . 2 . 1 1 . 2 Builder 15 | . 2 . . . . 1 . . . . . 3 . . . . 2 . . . . 1 . 2 . . . 3 1 . . . . . . Tunneler 7 | 4 . . . 1 . . . . . . . 1 . . . . . . . . . . . 1 . . . . . . . . . . . Hauler 9 | . 1 . . . 5 . . . . . . . . . . . 1 . . . . . . . . . . . . 2 . . . . . Recycler 11 | 1 2 . . . 1 1 . . . . . 1 . . . . . . . . . . . 2 1 . . . . 1 . 1 . . . Minesweeper 3 | . . . . . . . . 1 . . 1 . . 1 . . . . . . . . . . . . . . . . . . . . . Mechanic 4 | . . . . . 1 . . . . . . 1 . . . . . . . . . 1 . 1 . . . . . . . . . . . Operator 11 | . 3 . . . . . . . . . . . . . . . . . . . . . . 1 1 . 4 1 . . . . . . 1 Drone 1 | . . . . . . . . . . . . . . . . . . . . . 1 . . . . . . . . . . . . . . Watcher 30 | . 2 . . . 4 . . . . . . . . . . . . . . . . 2 . 6 3 1 . 2 2 1 3 1 2 . 1 Swarmer 92 | . 5 . . 24 4 7 1 . . . 4 . 10 1 . . . . 3 2 9 3 . . 5 . . 2 . . 4 . . . 8 Saboteur 1 | . . . . . . . . . . . . . . . . . . . . . . . . . 1 . . . . . . . . . . Grunt 116 | . 10 . . 2 13 3 1 . . . 8 1 3 11 . 8 2 . 13 1 2 1 . 4 5 . . 4 . 6 10 2 4 . 2 Brawler 5 | . . . . 1 . . . . . . . . . 1 . . . . 1 1 . . . . . . . . . . 1 . . . . Duelist 8 | . . . . . 1 . . . . . 2 . . . . . . . 1 1 . . . . 1 . . . . 1 1 . . . . Protector 2 | . . . . . . . . . . . . . . . . . . . . . . . . . . . . 1 . . . . . . 1 Researcher 5 | . . . . . . . . . . . . . . . . . . . . . . . . . . . . . . 2 . 2 1 . . Sentry 31 | . . . . . 6 2 1 . . . 1 2 . 1 . . 1 . 1 . 1 . . 2 2 . 1 3 2 . 3 . 2 . . Demolisher 2 | . . . . . . . . . . . . . . . . . . . . . . . . . . . . . . . 1 . . . 1 Specialist 1 | . . . . . . . . . . . . . . . . . . . . . . . . . 1 . . . . . . . . . . Hunter 39 | . . . . . . . . 1 . . . . . . . 1 2 3 2 . 2 . . . . . . 4 . 3 4 9 5 . 3 Programmer 43 | . . . . . . . . 1 . . . 1 . 1 . 2 . . . 1 . 2 . 3 . . . 4 . 8 . 9 9 . 2 Heavy 3 | . . . . . . . . . . . . 1 . . . . . . . . . . . . . . . 2 . . . . . . . Behemoth 10 | . . . . . . . . . . . 1 . 1 1 . 1 . 1 . . 1 . . . 2 . . . . . . . . . 2 Compactor 6 | . . . . . . . . . . . . . . . . . . . . . . . 6 . . . . . . . . . . . . Cetus Guard 3 | . . . . . . . . . . . . . . . . . . . . . . . . . . 3 . . . . . . . . . S7 Guard 2 | . . . . . . . . . . . . . . . . . . . . . . . . . . . . . . . . . 2 . . M Guard 2 | . . . . . . . . . . . . . . . . . . . . . . . . . . . . . . . . . . . 2 M Shell/Atk 4 | . . . . . . . . . . . . . . . . . . . . . . . . . . . . . . . . . . . 4 Lightning 6 | . . . . . . . . . . . . . . . . . . . . . . . . . . . . 6 . . . . . . . Combat Programmer 2 | . . . . . . . . . . . . . . . . . . . . . . . . . . . . . . . . . . . 2 Striker 4 | . . . . . . . . . . . . . . . . . . . . 2 . . . . . . . . . . 2 . . . . Executioner 3 | . . . . . . . . . . . . . . . . . . . . . . . . . . . . . . . 1 . 2 . . Fortress 1 | . . . . . . . . . . . . . . . . . . . . . . . . . . . . . . . . 1 . . . Z-Light 5 | . . . . . . . . . . 5 . . . . . . . . . . . . . . . . . . . . . . . . . Packrat 2 | . . . . . . . 2 . . . . . . . . . . . . . . . . . . . . . . . . . . . . Assembler 2 | . . . . . . . . . . 2 . . . . . . . . . . . . . . . . . . . . . . . . . Assembled 40 | . . 1 . . . . . . . 39 . . . . . . . . . . . . . . . . . . . . . . . . . Golem 2 | . . . . . . . . . . 2 . . . . . . . . . . . . . . . . . . . . . . . . . Guerrilla 1 | . . . . . . . . . . . . . . . . . . . . . . . . . 1 . . . . . . . . . . Fireman 1 | . . . . . . . . . . 1 . . . . . . . . . . . . . . . . . . . . . . . . . Mutant 1 | . . . . . . . . . . . . . . 1 . . . . . . . . . . . . . . . . . . . . . Best Kill Streak 38 | 3 5 1 . 4 5 5 3 1 . 38 4 2 4 3 . 4 6 2 4 5 5 4 6 3 6 2 4 8 2 5 14 7 8 . 6 Combat Bots Only 36 | . 3 1 . 4 3 4 3 1 . 36 4 1 4 3 . 4 3 2 4 5 5 2 6 2 6 2 1 6 1 4 13 5 7 . 6 Max Kills in Single Turn 15 | 2 2 1 . 2 2 2 1 1 . 15 1 2 1 1 . 1 2 1 2 2 1 2 1 2 2 1 1 2 1 2 2 1 1 . 1 Gunslinging 1 | . 1 . . 1 . . . . . . . . . . . . . . . . . . . . . . . . . . . . . . . Exploded 15 | . . . . . . 1 . . . 15 . . . . . . . . . . . . 1 . . . . . . . 2 . . . . Melee . | . . . . . . . . . . . . . . . . . . . . . . . . . . . . . . . . . . . . Uniques/NPCs Destroyed 3 | . . . . . . . . . . 1 . . . . . . . . . . . . . . . . . . . . . . . . 2 Z-Imprinter (-7/Deep Caves) MAIN.C Shell (-1/Command) MAIN.C (-1/Command) Combat | -11 -10 -10 -10 -9 -8 -7 -7 -7 -7 -7 -6 -6 -6 -6 -6 -5 -5 -5 -5 -5 -4 -4 -4 -4 -4 -4 -4 -4 -3 -3 -2 -2 -2 -1 -1 -------- Run | Yrd Mat Min Exi Min Mat Fac Low Low Zio Dee Pro Fac Low Low Dat Pro Fac Upp Upp War Pro Fac Was Fac Ext Cet Arc Hub Res Tes Res Qua Sec Acc Com Hostile Shots Fired 2540 | . 52 2 . 106 132 145 60 16 . 153 104 48 68 134 . 45 23 27 35 11 101 14 2 47 53 9 2 308 8 94 117 149 139 . 336 Missed 849 | . 16 . . 28 33 59 26 5 . 45 35 22 28 53 . 15 11 11 17 3 48 6 . 15 16 6 2 73 2 29 48 49 43 . 105 Damage Taken 25744 | . 382 25 . 724 1546 922 250 149 . 3288 1213 259 564 1027 . 500 189 293 298 174 590 98 170 683 635 53 . 4002 110 1057 1567 1403 1340 . 2233 Core 2524 | . 26 13 . 98 146 98 31 16 . 251 173 . 52 76 . 41 . 70 48 9 61 . 34 83 68 . . 241 . 16 96 18 110 . 649 Absorbed by Shields 4452 | . . . . . . . . . . . . . . . . . . . . 52 171 11 . . 89 31 . . . 152 484 502 999 . 1961 Reduced by Siege Mode 462 | . . . . . . . . . . . . . . . . . . . . . . . . . . . . 317 . 53 24 9 59 . . Redirected to Shielding 181 | . . . . . . . . . . 181 . . . . . . . . . . . . . . . . . . . . . . . . . Ignored by Resistances 7978 | . . . . . . . . . . . 238 55 122 207 . 99 39 58 59 45 162 25 34 79 149 17 . 1262 . 73 . 396 551 . 4308 Regen/Repaired (Parts) 3387 | . . . . . . . . . 129 . . . . . . . . . . . . . . . . . . . . 214 609 643 1792 . . Core Remaining (%) 65 | 100 . . . 45 73 . . . . . 18 . . . . 80 . . . . 81 . . . . . . 62 . 98 . . 38 . 57 Volleys Fired 1810 | 13 72 4 11 40 122 38 15 39 . 84 34 32 25 33 . 35 16 9 56 23 45 22 13 52 48 36 23 153 21 107 119 113 141 3 213 Largest 2 | 2 2 2 1 2 2 2 2 2 . 2 2 2 2 2 . 2 2 2 2 2 2 2 2 2 2 1 1 2 1 2 2 1 2 1 2 Hottest 300 | 40 40 100 20 44 83 104 104 104 . 132 50 50 50 50 . 50 50 50 50 50 50 50 65 50 50 25 25 50 25 119 143 120 300 100 300 Shots Fired 2681 | 26 146 7 11 80 244 71 30 54 . 145 65 53 50 66 . 64 28 18 102 39 77 36 26 95 89 36 23 183 21 118 121 115 145 3 294 Gun 814 | 26 146 6 11 80 170 24 . . . 47 . . . . . . . . . . . . 2 . . . . . . . . . 6 3 293 Cannon 1832 | . . . . . 74 42 30 54 . 86 65 53 50 66 . 64 28 18 102 39 77 36 13 95 89 36 23 183 21 118 115 115 139 . 1 Launcher 34 | . . . . . . 5 . . . 12 . . . . . . . . . . . . 11 . . . . . . . 6 . . . . Special 1 | . . 1 . . . . . . . . . . . . . . . . . . . . . . . . . . . . . . . . . Kinetic 597 | 26 146 6 11 80 170 33 15 39 . 71 . . . . . . . . . . . . . . . . . . . . . . . . . Thermal 1494 | . . 1 . . 74 33 15 15 . 18 65 53 50 66 . 64 28 18 102 39 77 36 13 95 89 36 23 183 21 98 19 63 99 . 1 Explosive 34 | . . . . . . 5 . . . 12 . . . . . . . . . . . . 11 . . . . . . . 6 . . . . Electromagnetic 236 | . . . . . . . . . . 28 . . . . . . . . . . . . . . . . . . . 20 96 52 40 . . Slashing 302 | . . . . . . . . . . . . . . . . . . . . . . . . . . . . . . . . . 6 3 293 Entropic 2 | . . . . . . . . . . . . . . . . . . . . . . . 2 . . . . . . . . . . . . Phasic 16 | . . . . . . . . . . 16 . . . . . . . . . . . . . . . . . . . . . . . . . Robot Hit Streak 44 | 11 8 2 10 6 21 11 7 7 . 21 9 15 10 36 . 17 38 39 23 17 23 16 19 18 19 23 14 17 7 41 6 21 30 . 44 Robot Miss Streak 7 | 2 7 1 1 4 5 5 1 3 . 4 1 2 4 2 . 2 . 1 3 2 1 1 1 2 1 2 2 4 1 2 2 4 2 . 2 Penetration Max 1 | . . . . . . . . . . . . . . . . . . . . . . . . . . . . . . . . . . . 1 Secondary Targets 10 | . 1 . . 5 3 . . . . . . . . . . . . . . . . . . . . . . . . . . . . . 1 Max Gunslinging Chain 1 | . 1 . . 1 1 . . . . . . . . . . . . . . . . . . . . . . . . . . . . . 1 Capacitor 739 | . . . . . . . . . . . . . . . . . . . . . . . . . . 36 21 110 21 58 109 115 136 3 130 Shots Hit Robots 1761 | 18 88 3 10 55 177 45 22 20 . 90 52 23 28 52 . 43 21 12 47 23 56 16 22 64 63 28 19 135 13 66 72 66 90 . 222 Core Hits 873 | 8 44 2 4 33 77 23 7 5 . 114 26 15 14 24 . 15 11 3 32 12 16 9 14 28 31 15 8 59 7 27 42 22 32 . 94 Critical Kills 4 | . . . . 1 1 1 . . . . . . . . . . . . . . . . . . . . . . . . . . 1 . . Critical Parts Destroyed 3 | . 1 . . . . . . . . 1 . . . . . . . . . . . . . . . . . . . . . 1 . . . Critical Strikes 16 | . 1 . . 1 1 1 . . . 2 1 . . . . . . . . . . . . . . . . . . . 1 1 2 . 5 Meltdown 2 | . . . . . 1 . . . . . . . . . . . . . . . . . . . . . . . . . . . 1 . . Destroy 4 | . 1 . . 1 . 1 . . . 1 . . . . . . . . . . . . . . . . . . . . . . . . . Corrupt 2 | . . . . . . . . . . . . . . . . . . . . . . . . . . . . . . . 1 . 1 . . Smash 1 | . . . . . . . . . . . . . . . . . . . . . . . . . . . . . . . . 1 . . . Sever 5 | . . . . . . . . . . . . . . . . . . . . . . . . . . . . . . . . . . . 5 Impale 1 | . . . . . . . . . . . 1 . . . . . . . . . . . . . . . . . . . . . . . . Intensify 1 | . . . . . . . . . . 1 . . . . . . . . . . . . . . . . . . . . . . . . . Melee Attacks 26 | . . . . . . . . . . . 7 . 1 2 . 1 . 1 . . 1 . . . . . . . . 3 . 5 5 . . Kinetic 4 | . . . . . . . . . . . . . . . . . . . . . . . . . . . . . . . . 4 . . . Impact 9 | . . . . . . . . . . . . . . . . . . . . . . . . . . . . . . 3 . 1 5 . . Slashing . | . . . . . . . . . . . . . . . . . . . . . . . . . . . . . . . . . . . . Piercing 13 | . . . . . . . . . . . 7 . 1 2 . 1 . 1 . . 1 . . . . . . . . . . . . . . Sneak Attacks 4 | . . . . . . . . . . . . . . . . . . . . . . . . . . . . . . 2 . 1 1 . . Combat Hostiles . | . . . . . . . . . . . . . . . . . . . . . . . . . . . . . . . . . . . . Follow-up Attacks . | . . . . . . . . . . . . . . . . . . . . . . . . . . . . . . . . . . . . Damage Inflicted 78635 | 253 1174 32 99 893 3378 1215 523 509 . 5290 2222 1191 1189 2281 . 1888 1024 510 2263 1324 2299 883 2549 3121 2961 1342 1000 7025 594 3219 3969 3339 4070 . 15006 Guns 20495 | 253 1174 32 99 893 2056 244 . . . 686 . . . . . . . . . . . . 52 . . . . . . . . . . . 15006 Cannons 49706 | . . . . . 1322 646 523 509 . 1469 2090 1191 1189 2281 . 1888 1024 510 2263 1324 2299 750 563 2996 2961 1342 1000 6599 594 2892 2748 2853 3880 . . Explosions 7528 | . . . . . . 325 . . . 3135 . . . . . . . . . . . 133 1934 125 . . . 426 . . 1221 229 . . . Melee 879 | . . . . . . . . . . . 132 . . . . . . . . . . . . . . . . . . 327 . 257 163 . . Ramming 27 | . . . . . . . . . . . . . . . . . . . . . . . . . . . . . . . . . 27 . . Kinetic 6494 | 253 1174 32 99 893 2056 339 270 234 . 1034 . . . . . . . . . . . . . . . . . . . . . 110 . . . Thermal 42076 | . . . . . 1322 551 253 275 . 357 2090 1191 1189 2281 . 1888 1024 510 2263 1324 2299 883 563 3121 2961 1342 1000 6599 594 2073 . 1699 2424 . . Explosive 6561 | . . . . . . 325 . . . 3081 . . . . . . . . . . . . 1934 . . . . . . . 1221 . . . . Electromagnetic 7353 | . . . . . . . . . . 521 . . . . . . . . . . . . . . . . . 426 . 819 2748 1383 1456 . . Impact 637 | . . . . . . . . . . . . . . . . . . . . . . . . . . . . . . 327 . 147 163 . . Slashing 15006 | . . . . . . . . . . . . . . . . . . . . . . . . . . . . . . . . . . . 15006 Piercing 132 | . . . . . . . . . . . 132 . . . . . . . . . . . . . . . . . . . . . . . . Entropic 52 | . . . . . . . . . . . . . . . . . . . . . . . 52 . . . . . . . . . . . . Phasic 297 | . . . . . . . . . . 297 . . . . . . . . . . . . . . . . . . . . . . . . . Highest Corruption 13 | . 3 3 3 5 1 . . 1 1 . . . . . . . . . . 1 1 . 13 13 . . 2 7 . 2 . 1 1 . . Average Corruption 2 | . 2 3 3 4 1 . . 1 1 . . . . . . . . . . 1 1 . 9 8 . . 1 6 . 1 . 1 1 . . Corruption Purged 17 | . . . . . . . . . . . . . . . . . . . . . . . . 15 . . 2 . . . . . . . . Corruption Blocked 74 | . . . . . . . . . . . . . . . . . . . . . . . . . . . . . . 30 4 20 20 . . Effects 158 | . 18 10 11 25 8 . . 6 . . . . . . . . . . . 1 14 . 6 26 . . 1 6 . 9 . 6 11 . . Message Errors 47 | . 8 6 4 8 2 . . 1 . . . . . . . . . . . . 3 . 2 7 . . . 1 . 1 . . 4 . . Matter Fused 37 | . 4 1 5 5 1 . . 3 . . . . . . . . . . . . . . 2 5 . . . 1 . 4 . 3 3 . . Heat Flow Errors 13 | . . . . 2 1 . . . . . . . . . . . . . . . 4 . . 1 . . . 1 . 1 . 1 2 . . Energy Discharges 19 | . . 1 . 5 1 . . 1 . . . . . . . . . . . . 3 . 2 4 . . 1 1 . . . . . . . Parts Rejected 2 | . . . . . . . . . . . . . . . . . . . . . . . . 1 . . . . . 1 . . . . . Parts Fused 2 | . . . 1 1 . . . . . . . . . . . . . . . . . . . . . . . . . . . . . . . Data Loss (minor) 17 | . 1 1 . 2 1 . . . . . . . . . . . . . . 1 2 . . 4 . . . 2 . 2 . . 1 . . Data Loss (major) 5 | . 3 1 1 . . . . . . . . . . . . . . . . . . . . . . . . . . . . . . . . Misfires 10 | . 2 . . 1 1 . . . . . . . . . . . . . . . 1 . . 2 . . . . . . . 2 1 . . Alerts 2 | . . . . . 1 . . 1 . . . . . . . . . . . . . . . . . . . . . . . . . . . Weapon Failures 4 | . . . . 1 . . . . . . . . . . . . . . . . 1 . . 2 . . . . . . . . . . . Overload Shots . | . . . . . . . . . . . . . . . . . . . . . . . . . . . . . . . . . . . . Overflow Damage 2559 | . . . . . 3 77 45 43 . 98 50 65 37 136 . 65 11 52 40 43 140 88 . 163 110 . . 298 28 320 36 313 298 . . Projectiles 1788 | . . . . . 3 31 45 43 . 48 50 65 37 136 . 65 11 52 40 43 140 12 . 163 110 . . 256 28 123 32 110 145 . . Explosions 274 | . . . . . . 46 . . . 50 . . . . . . . . . . . 76 . . . . . 42 . . 4 56 . . . Melee 497 | . . . . . . . . . . . . . . . . . . . . . . . . . . . . . . 197 . 147 153 . . Knockbacks 8 | . . . . . . . 3 1 . 2 . . . . . . . . . . . . . . . . . . . 1 . . 1 . . Impact 2 | . . . . . . . . . . . . . . . . . . . . . . . . . . . . . . 1 . . 1 . . Kinetic 6 | . . . . . . . 3 1 . 2 . . . . . . . . . . . . . . . . . . . . . . . . . Secondary . | . . . . . . . . . . . . . . . . . . . . . . . . . . . . . . . . . . . . Self-Inflicted Damage 610 | . . . . . . . . . . 153 . . . . . . . . . . . . 95 98 . . . 104 . . 130 30 . . . Shots 15 | . . . . . . . . . . 4 . . . . . . . . . . . . 3 2 . . . 1 . . 4 1 . . . Rammed . | . . . . . . . . . . . . . . . . . . . . . . . . . . . . . . . . . . . . Targets Rammed 1 | . . . . . . . . . . . . . . . . . . . . . . . . . . . . . . . . . 1 . . Kicked 1 | . . . . . . . . . . . . . . . . . . . . . . . . . . . . . . . . . 1 . . Crushed . | . . . . . . . . . . . . . . . . . . . . . . . . . . . . . . . . . . . . Highest Temperature 390 | . 22 40 . 239 259 141 25 . . 141 1 4 14 54 . 5 . . 9 6 243 2 . 101 4 34 84 390 64 233 304 225 388 . 131 Average Temperature 61 | . 8 22 . 56 41 41 17 . . 38 1 4 9 22 . 3 . . 5 4 94 2 . 31 2 11 29 123 21 67 36 72 101 . 27 Received Heat Transfer 5050 | . 174 . . 90 774 195 33 . . 721 309 54 105 406 . 195 45 24 135 10 20 9 . 120 92 . . 351 9 95 45 672 52 . 315 Effects 19 | . . . . . . . . . . . . . . . . . . . . . . . . . . . . 13 . 3 . . 3 . . Shutdowns 9 | . . . . . . . . . . . . . . . . . . . . . . . . . . . . 7 . . . . 2 . . Energy Bleed 3 | . . . . . . . . . . . . . . . . . . . . . . . . . . . . 1 . 1 . . 1 . . Interference 3 | . . . . . . . . . . . . . . . . . . . . . . . . . . . . 1 . 2 . . . . . Matter Decay 1 | . . . . . . . . . . . . . . . . . . . . . . . . . . . . 1 . . . . . . . Short Circuit 2 | . . . . . . . . . . . . . . . . . . . . . . . . . . . . 2 . . . . . . . Damage (minor) 1 | . . . . . . . . . . . . . . . . . . . . . . . . . . . . 1 . . . . . . . Siege Activations 23 | . . . . . . . . . . . . . . . . . . . . . . . . . . 1 . 4 . 4 3 3 8 . . Total Turns 330 | . . . . . . . . . . . . . . . . . . . . . . . . . . 13 . 157 . 23 15 32 90 . . Longest Duration 78 | . . . . . . . . . . . . . . . . . . . . . . . . . . 13 . 78 . 9 8 16 24 . . Robots Corrupted 38 | . . . . . . . . . . 2 . . . . . . . . . . . . . . . . . 1 . 5 13 8 9 . . Combat Hostiles 37 | . . . . . . . . . . 2 . . . . . . . . . . . . . . . . . 1 . 5 13 7 9 . . Parts Fried 74 | . . . . . . . . . . 2 . . . . . . . . . . . . . . . . . 6 . 11 24 15 16 . . Impact Corruptions 9 | . . . . . . . . . . . . . . . . . . . . . . . . . . . . . . 4 . 2 3 . . Robots Melted 2 | . . . . . 1 . . . . . . . . . . . . . . . . . . . . . . . . . . . 1 . . Combat Hostiles 2 | . . . . . 1 . . . . . . . . . . . . . . . . . . . . . . . . . . . 1 . . Parts Melted 38 | . . . . . 3 1 . 1 . . 1 . 1 . . 1 2 1 . . 6 1 . 2 4 . . 6 . 1 . 1 6 . . Heat Transferred 26551 | . . . . . 2109 1020 407 407 . 229 1200 650 700 1275 . 1050 550 300 1350 675 1350 500 275 1700 1569 800 512 3240 325 1100 . 1186 2072 . . Parts Sabotaged . | . . . . . . . . . . . . . . . . . . . . . . . . . . . . . . . . . . . . Parts Stolen . | . . . . . . . . . . . . . . . . . . . . . . . . . . . . . . . . . . . . Parts Stripped 18 | . . . . . . . . . . . . . . . . . . . . . . . . . . . . . . . . 18 . . . Power Chain Reactions 3 | . . . . . . . . . . 1 . . . . . . . . . . . . . . . . . . . . . 2 . . . Alert | -11 -10 -10 -10 -9 -8 -7 -7 -7 -7 -7 -6 -6 -6 -6 -6 -5 -5 -5 -5 -5 -4 -4 -4 -4 -4 -4 -4 -4 -3 -3 -2 -2 -2 -1 -1 ------- Run | Yrd Mat Min Exi Min Mat Fac Low Low Zio Dee Pro Fac Low Low Dat Pro Fac Upp Upp War Pro Fac Was Fac Ext Cet Arc Hub Res Tes Res Qua Sec Acc Com Peak Influence 1687 | 35 269 77 . 355 612 435 . . . . . 240 . . . . 158 . . . . 513 169 510 814 641 409 716 523 772 1252 778 1687 1169 784 Initial 1100 | . 22 77 . . 107 256 . . . . . 138 . . . . 8 . . . . 164 95 112 178 383 176 . 375 213 434 662 315 1100 748 Average 349 | 14 147 56 . 183 416 309 . . . . . 127 . . . . 123 . . . . 324 143 294 522 503 104 412 426 520 910 502 454 1147 718 Maximum Alert Level 5 | . 1 . . 1 2 2 . . . . . 1 . . . . . . . . . 2 . 2 3 2 2 3 2 3 4 3 5 4 4 Low Security (%) 29 | 100 84 100 . 42 7 . . . . . . 93 . . . . 100 . . . . 37 100 22 5 . 68 11 . . . . 3 . . Level 1 29 | . 15 . . 57 38 98 . . . . . 6 . . . . . . . . . 18 . 58 27 12 21 46 32 32 . 26 38 . . Level 2 28 | . . . . . 54 1 . . . . . . . . . . . . . . . 44 . 19 34 87 9 33 67 45 29 68 55 . 4 Level 3 5 | . . . . . . . . . . . . . . . . . . . . . . . . . 32 . . 8 . 22 20 4 . . 15 Level 4 6 | . . . . . . . . . . . . . . . . . . . . . . . . . . . . . . . 49 . . 100 79 Level 5 . | . . . . . . . . . . . . . . . . . . . . . . . . . . . . . . . . . . . . High Security . | . . . . . . . . . . . . . . . . . . . . . . . . . . . . . . . . . . . . Max Security . | . . . . . . . . . . . . . . . . . . . . . . . . . . . . . . . . . 3 . . Squads Dispatched 62 | . 6 . . . 4 2 . . . . . 4 . . . . 2 . 1 . . 2 . 2 2 . . 5 2 10 1 9 10 . . Investigation 9 | . 3 . . . 2 1 . . . . . 1 . . . . 1 . 1 . . . . . . . . . . . . . . . . Extermination 15 | . . . . . . . . . . . . 1 . . . . . . . . . 1 . 2 . . . 2 . 3 . 3 3 . . Reinforcement 24 | . 3 . . . . 1 . . . . . 2 . . . . 1 . . . . 1 . . . . . 3 2 4 1 5 1 . . Assault 11 | . . . . . 2 . . . . . . . . . . . . . . . . . . . 2 . . . . . . 1 6 . . Garrison 3 | . . . . . . . . . . . . . . . . . . . . . . . . . . . . . . 3 . . . . . Intercept . | . . . . . . . . . . . . . . . . . . . . . . . . . . . . . . . . . . . . Searches Triggered . | . . . . . . . . . . . . . . . . . . . . . . . . . . . . . . . . . . . . Construction Impeded . | . . . . . . . . . . . . . . . . . . . . . . . . . . . . . . . . . . . . Haulers Reinforced 3 | . . . . . . . . . . . . 1 . . . . 1 . . . . . . . . . . . . 1 . . . . . Active Scanning Responses . | . . . . . . . . . . . . . . . . . . . . . . . . . . . . . . . . . . . . Cargo Convoy Interrupts . | . . . . . . . . . . . . . . . . . . . . . . . . . . . . . . . . . . . . Stealth | -11 -10 -10 -10 -9 -8 -7 -7 -7 -7 -7 -6 -6 -6 -6 -6 -5 -5 -5 -5 -5 -4 -4 -4 -4 -4 -4 -4 -4 -3 -3 -2 -2 -2 -1 -1 --------- Run | Yrd Mat Min Exi Min Mat Fac Low Low Zio Dee Pro Fac Low Low Dat Pro Fac Upp Upp War Pro Fac Was Fac Ext Cet Arc Hub Res Tes Res Qua Sec Acc Com Distress Signals 49 | . . . . . 2 1 . . . . . . . . . . . . . . . . . . 4 2 . 1 4 . 11 1 4 1 18 Communications Jammed 48 | . . . . . . . . . . . . . . . . . 1 . . . . . . . . . . 47 . . . . . . . Distress Signals 47 | . . . . . . . . . . . . . . . . . 1 . . . . . . . . . . 46 . . . . . . . Times Spotted 657 | . 29 1 . 28 54 17 3 2 . 54 16 4 13 16 . 11 5 2 15 30 16 12 6 22 37 7 10 42 5 29 43 25 44 . 59 Peak Tracking Total 38 | . 3 1 . 4 6 6 2 1 . 38 4 2 4 3 . 4 2 2 4 8 3 5 5 5 6 5 2 8 4 6 6 7 14 2 21 Tactical Retreats 33 | . 1 . . 1 3 2 . . . 3 . . . . . . . . 1 . 1 3 . 1 . . . . 1 2 7 1 1 . 5 Traps | -11 -10 -10 -10 -9 -8 -7 -7 -7 -7 -7 -6 -6 -6 -6 -6 -5 -5 -5 -5 -5 -4 -4 -4 -4 -4 -4 -4 -4 -3 -3 -2 -2 -2 -1 -1 ------- Run | Yrd Mat Min Exi Min Mat Fac Low Low Zio Dee Pro Fac Low Low Dat Pro Fac Upp Upp War Pro Fac Was Fac Ext Cet Arc Hub Res Tes Res Qua Sec Acc Com Traps Triggered 14 | . 3 . . . 2 . . . . . . 2 . . . . . . . . . 1 . . 4 . . . . . . . . . 2 Indirectly . | . . . . . . . . . . . . . . . . . . . . . . . . . . . . . . . . . . . . Trap Hack Attempts . | . . . . . . . . . . . . . . . . . . . . . . . . . . . . . . . . . . . . Triggered . | . . . . . . . . . . . . . . . . . . . . . . . . . . . . . . . . . . . . Disarmed . | . . . . . . . . . . . . . . . . . . . . . . . . . . . . . . . . . . . . Reprogrammed . | . . . . . . . . . . . . . . . . . . . . . . . . . . . . . . . . . . . . Reused 3 | . . . . . . . . . . 3 . . . . . . . . . . . . . . . . . . . . . . . . . Traps Reconfigurated 7 | . . . . . . 2 . . . . . 5 . . . . . . . . . . . . . . . . . . . . . . . Traps Extracted . | . . . . . . . . . . . . . . . . . . . . . . . . . . . . . . . . . . . . Installed 4 | . . . . . . . . . . 4 . . . . . . . . . . . . . . . . . . . . . . . . . Triggered 13 | . . . . . . . . . . . . . . . . . . . . 11 2 . . . . . . . . . . . . . . Fabricated Traps 4 | . . . . . . . . . . 4 . . . . . . . . . . . . . . . . . . . . . . . . . Machines | -11 -10 -10 -10 -9 -8 -7 -7 -7 -7 -7 -6 -6 -6 -6 -6 -5 -5 -5 -5 -5 -4 -4 -4 -4 -4 -4 -4 -4 -3 -3 -2 -2 -2 -1 -1 ---------- Run | Yrd Mat Min Exi Min Mat Fac Low Low Zio Dee Pro Fac Low Low Dat Pro Fac Upp Upp War Pro Fac Was Fac Ext Cet Arc Hub Res Tes Res Qua Sec Acc Com Machines Disabled 67 | . . . . . 2 1 . . . 2 . . . . . . . . 2 . . 10 . 7 2 . 2 2 . 9 . 7 18 . 3 Max in Single Turn 10 | . . . . . 1 1 . . . 1 . . . . . . . . 1 . . 10 . 4 1 . . 1 . 1 . 1 2 . 1 Garrison Access 6 | . . . . . 1 1 . . . . . . . . . . . . . . . . . . . . . 1 . . 2 1 . . . Network Hub 4 | . . . . . . . . . . . . . . . . . . . . . . . . . . . . 4 . . . . . . . Machines Repaired . | . . . . . . . . . . . . . . . . . . . . . . . . . . . . . . . . . . . . Machines Dismantled 6 | . . . . . . . . . 3 . . . . . . . . . . . . . . . . . . 3 . . . . . . . Machines Sabotaged . | . . . . . . . . . . . . . . . . . . . . . . . . . . . . . . . . . . . . Overloaded Fab Kills . | . . . . . . . . . . . . . . . . . . . . . . . . . . . . . . . . . . . . Hacking | -11 -10 -10 -10 -9 -8 -7 -7 -7 -7 -7 -6 -6 -6 -6 -6 -5 -5 -5 -5 -5 -4 -4 -4 -4 -4 -4 -4 -4 -3 -3 -2 -2 -2 -1 -1 --------- Run | Yrd Mat Min Exi Min Mat Fac Low Low Zio Dee Pro Fac Low Low Dat Pro Fac Upp Upp War Pro Fac Was Fac Ext Cet Arc Hub Res Tes Res Qua Sec Acc Com Machines Accessed 45 | . 7 1 3 . 8 4 1 . 1 . . . 1 1 3 . 1 . 1 1 . . . 2 . 1 . 1 2 3 . . 1 1 1 Terminals 22 | . 5 . . . 6 2 . . . . . . . . . . . . 1 . . . . 1 . 1 . . 1 2 . . 1 1 1 Fabricators 2 | . . . . . . . . . . . . . . . . . 1 . . . . . . 1 . . . . . . . . . . . Repair Stations 1 | . . . . . 1 . . . . . . . . . . . . . . . . . . . . . . . . . . . . . . Recycling Units 4 | . 2 . . . 1 1 . . . . . . . . . . . . . . . . . . . . . . . . . . . . . Scanalyzers 1 | . . . . . . . . . . . . . . . . . . . . . . . . . . . . . 1 . . . . . . Garrison Access 3 | . . . . . . 1 . . . . . . . . . . . . . . . . . . . . . 1 . 1 . . . . . Total Hacks 112 | . 16 1 4 . 17 7 1 . 3 . . . 1 1 24 . 4 . 3 1 . . . 4 . 4 . 1 2 11 . . 1 5 1 Successful 76 | . 13 1 4 . 8 5 1 . 3 . . . 1 1 24 . 1 . 3 1 . . . 2 . 1 . 1 1 1 . . 1 2 1 Failed 35 | . 2 . . . 9 2 . . . . . . . . . . 3 . . . . . . 2 . 3 . . 1 10 . . . 3 . Catastrophic 2 | . . . . . . . . . . . . . . . . . . . . . . . . . . . . . . 2 . . . . . Database Lockouts 1 | . 1 . . . . . . . . . . . . . . . . . . . . . . . . . . . . . . . . . . Manual 27 | . 12 . 1 . 4 3 . . . . . . . . . . . . . 1 . . . . . 1 . . . . . . . 5 . Terminals 55 | . 13 . . . 13 5 . . . . . . . . . . . . 3 . . . . 2 . 4 . . 1 7 . . 1 5 1 Fabricators 6 | . . . . . . . . . . . . . . . . . 4 . . . . . . 2 . . . . . . . . . . . Repair Stations 3 | . . . . . 3 . . . . . . . . . . . . . . . . . . . . . . . . . . . . . . Recycling Units 5 | . 3 . . . 1 1 . . . . . . . . . . . . . . . . . . . . . . . . . . . . . Scanalyzers 1 | . . . . . . . . . . . . . . . . . . . . . . . . . . . . . 1 . . . . . . Garrison Access 6 | . . . . . . 1 . . . . . . . . . . . . . . . . . . . . . 1 . 4 . . . . . Terminal Hacks 62 | . 10 1 4 . 5 2 1 . 3 . . . 1 1 24 . . . 3 1 . . . 1 . 1 . . 1 1 . . 1 . 1 Record 8 | . . . 3 . . . . . . . . . . . 2 . . . 3 . . . . . . . . . . . . . . . . Part Schematic 17 | . 1 . . . . . . . 3 . . . . . 13 . . . . . . . . . . . . . . . . . . . . Robot Schematic 6 | . . . . . . . . . . . . . . . 6 . . . . . . . . . . . . . . . . . . . . Robot Analysis 1 | . 1 . . . . . . . . . . . . . . . . . . . . . . . . . . . . . . . . . . Prototype ID Bank 8 | . 2 . . . 2 . . . . . . . . . 3 . . . . . . . . . . . . . 1 . . . . . . Open Door 9 | . . 1 . . . . 1 . . . . . 1 1 . . . . . 1 . . . . . 1 . . . 1 . . 1 . 1 Branch Access Points 2 | . . . . . 1 . . . . . . . . . . . . . . . . . . 1 . . . . . . . . . . . Alert Level 1 | . . . . . 1 . . . . . . . . . . . . . . . . . . . . . . . . . . . . . . Unreport Threat 1 | . . . . . 1 . . . . . . . . . . . . . . . . . . . . . . . . . . . . . . Locate Traps 5 | . 4 . . . . 1 . . . . . . . . . . . . . . . . . . . . . . . . . . . . . Recall Investigation 1 | . 1 . . . . . . . . . . . . . . . . . . . . . . . . . . . . . . . . . . Zone Layout 2 | . 1 . . . . 1 . . . . . . . . . . . . . . . . . . . . . . . . . . . . . Derelict Proto ID Bank 1 | . . . 1 . . . . . . . . . . . . . . . . . . . . . . . . . . . . . . . . Fabricator Hacks 2 | . . . . . . . . . . . . . . . . . 1 . . . . . . 1 . . . . . . . . . . . Network Status 1 | . . . . . . . . . . . . . . . . . . . . . . . . 1 . . . . . . . . . . . Load Schematic 1 | . . . . . . . . . . . . . . . . . 1 . . . . . . . . . . . . . . . . . . Repair Station Hacks 1 | . . . . . 1 . . . . . . . . . . . . . . . . . . . . . . . . . . . . . . Scan Component 1 | . . . . . 1 . . . . . . . . . . . . . . . . . . . . . . . . . . . . . . Recycling Unit Hacks . | . . . . . . . . . . . . . . . . . . . . . . . . . . . . . . . . . . . . Scanalyzer . | . . . . . . . . . . . . . . . . . . . . . . . . . . . . . . . . . . . . Garrison Access Hacks 2 | . . . . . . 1 . . . . . . . . . . . . . . . . . . . . . 1 . . . . . . . Seal Access 2 | . . . . . . 1 . . . . . . . . . . . . . . . . . . . . . 1 . . . . . . . Unauthorized Hacks 9 | . 3 . . . 2 2 . . . . . . . . . . . . . . . . . . . . . . . . . . . 2 . Terminals 5 | . 1 . . . 1 1 . . . . . . . . . . . . . . . . . . . . . . . . . . . 2 . Botnet 4 | . 1 . . . 1 1 . . . . . . . . . . . . . . . . . . . . . . . . . . . 1 . Operators 1 | . . . . . . . . . . . . . . . . . . . . . . . . . . . . . . . . . . 1 . Fabricators . | . . . . . . . . . . . . . . . . . . . . . . . . . . . . . . . . . . . . Repair Stations . | . . . . . . . . . . . . . . . . . . . . . . . . . . . . . . . . . . . . Recycling Units 4 | . 2 . . . 1 1 . . . . . . . . . . . . . . . . . . . . . . . . . . . . . Tunnel 4 | . 2 . . . 1 1 . . . . . . . . . . . . . . . . . . . . . . . . . . . . . Scanalyzers . | . . . . . . . . . . . . . . . . . . . . . . . . . . . . . . . . . . . . Garrison Access . | . . . . . . . . . . . . . . . . . . . . . . . . . . . . . . . . . . . . Data Cores Recovered . | . . . . . . . . . . . . . . . . . . . . . . . . . . . . . . . . . . . . Used . | . . . . . . . . . . . . . . . . . . . . . . . . . . . . . . . . . . . . Hacking Detections 21 | . 3 . . . 7 2 . . . . . . . . . . 1 . 1 . . . . 1 . 1 . . 1 3 . . . 1 . Full Trace Events 2 | . . . . . . . . . . . . . . . . . 1 . 1 . . . . . . . . . . . . . . . . Feedback Events . | . . . . . . . . . . . . . . . . . . . . . . . . . . . . . . . . . . . . Feedback Blocked . | . . . . . . . . . . . . . . . . . . . . . . . . . . . . . . . . . . . . Robot Schematics Acquired 8 | . . . . . . . . . . . . . . . 6 . . . . . . . . . . . . . . 1 . 1 . . . Robots Built . | . . . . . . . . . . . . . . . . . . . . . . . . . . . . . . . . . . . . Authchips . | . . . . . . . . . . . . . . . . . . . . . . . . . . . . . . . . . . . . Time . | . . . . . . . . . . . . . . . . . . . . . . . . . . . . . . . . . . . . Total Robot Build Rating . | . . . . . . . . . . . . . . . . . . . . . . . . . . . . . . . . . . . . Part Schematics Acquired 34 | . 1 . . . . . . . 3 . . . . . 13 . . . . . . . . . . . . . . 9 . 5 3 . . Parts Built . | . . . . . . . . . . . . . . . . . . . . . . . . . . . . . . . . . . . . Authchips . | . . . . . . . . . . . . . . . . . . . . . . . . . . . . . . . . . . . . Time . | . . . . . . . . . . . . . . . . . . . . . . . . . . . . . . . . . . . . Total Part Build Rating . | . . . . . . . . . . . . . . . . . . . . . . . . . . . . . . . . . . . . Parts Repaired . | . . . . . . . . . . . . . . . . . . . . . . . . . . . . . . . . . . . . Time . | . . . . . . . . . . . . . . . . . . . . . . . . . . . . . . . . . . . . Parts Recycled . | . . . . . . . . . . . . . . . . . . . . . . . . . . . . . . . . . . . . Recycled Matter . | . . . . . . . . . . . . . . . . . . . . . . . . . . . . . . . . . . . . Retrieved Matter . | . . . . . . . . . . . . . . . . . . . . . . . . . . . . . . . . . . . . Retrieved Components . | . . . . . . . . . . . . . . . . . . . . . . . . . . . . . . . . . . . . Parts Scanalyzed . | . . . . . . . . . . . . . . . . . . . . . . . . . . . . . . . . . . . . Part Schematics Acquired . | . . . . . . . . . . . . . . . . . . . . . . . . . . . . . . . . . . . . Parts Damaged . | . . . . . . . . . . . . . . . . . . . . . . . . . . . . . . . . . . . . Bothacking | -11 -10 -10 -10 -9 -8 -7 -7 -7 -7 -7 -6 -6 -6 -6 -6 -5 -5 -5 -5 -5 -4 -4 -4 -4 -4 -4 -4 -4 -3 -3 -2 -2 -2 -1 -1 ------------ Run | Yrd Mat Min Exi Min Mat Fac Low Low Zio Dee Pro Fac Low Low Dat Pro Fac Upp Upp War Pro Fac Was Fac Ext Cet Arc Hub Res Tes Res Qua Sec Acc Com Used RIF Installer . | . . . . . . . . . . . . . . . . . . . . . . . . . . . . . . . . . . . . Robots Hacked . | . . . . . . . . . . . . . . . . . . . . . . . . . . . . . . . . . . . . Non-combat . | . . . . . . . . . . . . . . . . . . . . . . . . . . . . . . . . . . . . Combat . | . . . . . . . . . . . . . . . . . . . . . . . . . . . . . . . . . . . . Robot Hacks Applied . | . . . . . . . . . . . . . . . . . . . . . . . . . . . . . . . . . . . . Relay Couplers Released 5 | . . . . . 2 . . . . . . . . . . . . . . . . . . . . . . . . . 2 1 . . . Machine Destruction 5 | . . . . . 2 . . . . . . . . . . . . . . . . . . . . . . . . . 2 1 . . . Fabnet Peak Effective % . | . . . . . . . . . . . . . . . . . . . . . . . . . . . . . . . . . . . . Robots Rewired 16 | . . . 1 . . . . . . . . . . . . . . . . . . . . . 14 . . . . 1 . . . . . Allies Hacked . | . . . . . . . . . . . . . . . . . . . . . . . . . . . . . . . . . . . . Hacks Repelled . | . . . . . . . . . . . . . . . . . . . . . . . . . . . . . . . . . . . . Allies | -11 -10 -10 -10 -9 -8 -7 -7 -7 -7 -7 -6 -6 -6 -6 -6 -5 -5 -5 -5 -5 -4 -4 -4 -4 -4 -4 -4 -4 -3 -3 -2 -2 -2 -1 -1 -------- Run | Yrd Mat Min Exi Min Mat Fac Low Low Zio Dee Pro Fac Low Low Dat Pro Fac Upp Upp War Pro Fac Was Fac Ext Cet Arc Hub Res Tes Res Qua Sec Acc Com Total Allies 108 | . . . 1 3 . . . . 5 . . . . . . . . . . . . . . 1 22 5 . . . 1 . 1 . 16 53 Largest Group 13 | . . . 1 3 3 . . . 5 5 . . . . . . . . . . . . . 1 13 8 8 6 . 1 . 1 . 13 8 Highest-Rated Group 729 | . . . 8 40 40 . . . 135 135 . . . . . . . . . . . . . 26 520 729 729 526 . 148 . 26 . 185 112 Highest-Rated Ally 159 | . . . 8 16 16 . . . 31 31 . . . . . . . . . . . . . 26 159 159 159 96 . 148 . 26 . 15 15 Total Orders 36 | . . . . . . . . . . 1 . 4 . . . . 1 . . 2 . 1 . 4 3 . . 3 2 7 . 5 3 . . EXPLORE 1 | . . . . . . . . . . . . . . . . . . . . 1 . . . . . . . . . . . . . . . RETURN 35 | . . . . . . . . . . 1 . 4 . . . . 1 . . 1 . 1 . 4 3 . . 3 2 7 . 5 3 . . Ally Attacks 472 | . . . . . 62 . . . . 113 . . . . . . . . . . . . . . 133 44 32 42 . 25 . . . 15 6 Total Damage 11388 | . . . . . 652 . . . . 1047 . . . . . . . . . . . . . . 4269 1120 903 1313 . 1743 . . . 266 75 Kills 67 | . . . . . 8 . . . . 10 . . . . . . . . . . . . . . 18 6 3 10 . 12 . . . . . Allies Corrupted 1 | . . . . . . . . . . . . . . . . . . . . . . . . . 1 . . . . . . . . . . Allies Melted 1 | . . . . . . . . . . . . . . . . . . . . . . . . . . . . . . . 1 . . . . Intel | -11 -10 -10 -10 -9 -8 -7 -7 -7 -7 -7 -6 -6 -6 -6 -6 -5 -5 -5 -5 -5 -4 -4 -4 -4 -4 -4 -4 -4 -3 -3 -2 -2 -2 -1 -1 ------- Run | Yrd Mat Min Exi Min Mat Fac Low Low Zio Dee Pro Fac Low Low Dat Pro Fac Upp Upp War Pro Fac Was Fac Ext Cet Arc Hub Res Tes Res Qua Sec Acc Com Robot Analysis Total 1 | . 1 . . . . . . . . . . . . . . . . . . . . . . . . . . . . . . . . . . Derelict Logs Recovered 21 | . . 1 . 1 . . 2 3 1 . 2 . 2 2 . 2 . 2 1 . 2 . . . . . . . . . . . . . . Drone Launches 49 | . . . . . . . . . . 10 . 5 . . . . 1 . . 3 . 1 . 4 3 . . 3 2 8 . 5 4 . . Drone Recoveries 49 | . . . . . . . . . . 10 . 5 . . . . 1 . . 3 . 1 . 4 3 . . 3 2 8 . 5 4 . . Exploration | -11 -10 -10 -10 -9 -8 -7 -7 -7 -7 -7 -6 -6 -6 -6 -6 -5 -5 -5 -5 -5 -4 -4 -4 -4 -4 -4 -4 -4 -3 -3 -2 -2 -2 -1 -1 ------------- Run | Yrd Mat Min Exi Min Mat Fac Low Low Zio Dee Pro Fac Low Low Dat Pro Fac Upp Upp War Pro Fac Was Fac Ext Cet Arc Hub Res Tes Res Qua Sec Acc Com Turns Passed 59003 | 207 1537 565 668 1101 2446 837 1406 1269 1711 7789 4897 797 2848 3229 166 5079 409 2150 3827 880 1602 455 158 1041 1250 421 2468 1148 398 1400 878 1176 1693 51 1046 Spaces Moved 22004 | 96 783 339 388 560 819 382 843 693 859 2155 871 308 1111 1070 79 1152 167 926 1323 397 639 211 64 436 350 147 62 300 202 596 376 554 751 152 1843 Core 50 | 48 . . . . . . . . . . . . . . . 2 . . . . . . . . . . . . . . . . . . . Treads 6133 | 48 783 339 388 560 819 23 . . 96 303 . . . . . . . . . . . . . . . 118 62 300 202 596 376 554 566 . . Legs 11316 | . . . . . . . . . . 5 871 308 1111 1070 79 1150 167 926 1323 397 639 211 64 436 350 29 . . . . . . 185 152 1843 Wheels 4505 | . . . . . . 359 843 693 763 1847 . . . . . . . . . . . . . . . . . . . . . . . . . Hover . | . . . . . . . . . . . . . . . . . . . . . . . . . . . . . . . . . . . . Flight . | . . . . . . . . . . . . . . . . . . . . . . . . . . . . . . . . . . . . Fastest Speed 30 | 50 160 160 160 160 160 160 160 160 160 165 180 180 180 180 210 180 210 180 180 180 210 175 125 125 176 176 240 160 160 160 166 160 30 30 30 Average Speed 172 | 140 160 160 160 170 226 165 160 162 187 200 203 180 203 209 210 212 210 195 180 184 210 175 173 174 193 232 259 239 160 163 166 162 127 30 30 Slowest Speed 1950 | 160 160 160 160 240 245 250 160 175 330 330 210 180 210 210 210 1950 210 210 180 210 210 175 176 176 225 240 320 240 160 166 166 245 160 30 30 Overloaded Moves . | . . . . . . . . . . . . . . . . . . . . . . . . . . . . . . . . . . . . Propulsion Burnouts . | . . . . . . . . . . . . . . . . . . . . . . . . . . . . . . . . . . . . Robots Hopped . | . . . . . . . . . . . . . . . . . . . . . . . . . . . . . . . . . . . . Cave-ins Triggered 1 | . . . . . . . . . . . . . . . . . . . . . . . . . . . . . . . . . 1 . . Teleports 4 | . . . . . . . . . . . . . . . . . . . . . . . . . . . . . . . . 3 1 . . Exploration Rate (%) 64 | 5 97 56 79 94 74 12 92 95 85 88 98 13 98 97 70 99 8 99 99 95 95 8 63 12 70 65 68 49 10 72 23 79 62 6 72 Regions Visited 35 Branch Regions 24 Pre-discovered Areas 12 | . 2 . 1 . 1 1 . 1 1 . 1 . . . 1 . . 2 1 . . . . . . . . . . . . . . . . Known Exits Taken 18 | . . . . . . 1 1 1 1 . . 1 1 . . 1 1 . . . 1 . . 1 1 1 1 1 1 1 . 1 1 . . Unknown Exits Taken 15 | 1 1 1 1 1 1 . . . . 1 1 . . 1 1 . . 1 1 1 . . . . . . . . . . 1 . . 1 . Scrap Searched 32 | . . 1 . 2 . . 5 2 3 . 5 . 1 2 . 5 . 2 3 . 1 . . . . . . . . . . . . . . Spaces Dug 256 | . . . . . . 12 . 7 . 2 3 13 1 . . 5 4 . 19 3 7 9 . 12 10 . . 13 6 35 18 20 45 6 6 Terrain Destroyed 1046 | . . . . . 5 28 . 7 . 19 16 20 19 15 . 22 4 4 36 3 23 31 93 53 21 2 1 193 8 42 77 56 47 6 195 Melee 1 | . . . . . . . . . . . . . . . . . . . . . . . . . . . . . . . . . 1 . . Projectile 624 | . . . . . 5 . . 7 . 5 16 20 19 15 . 22 4 4 36 3 23 15 2 23 21 2 1 37 8 42 18 29 46 6 195 AOE 421 | . . . . . . 28 . . . 14 . . . . . . . . . . . 16 91 30 . . . 156 . . 59 27 . . . Terrain Rammed . | . . . . . . . . . . . . . . . . . . . . . . . . . . . . . . . . . . . . Walls Destroyed . | . . . . . . . . . . . . . . . . . . . . . . . . . . . . . . . . . . . . Machines Disabled . | . . . . . . . . . . . . . . . . . . . . . . . . . . . . . . . . . . . . Actions | -11 -10 -10 -10 -9 -8 -7 -7 -7 -7 -7 -6 -6 -6 -6 -6 -5 -5 -5 -5 -5 -4 -4 -4 -4 -4 -4 -4 -4 -3 -3 -2 -2 -2 -1 -1 --------- Run | Yrd Mat Min Exi Min Mat Fac Low Low Zio Dee Pro Fac Low Low Dat Pro Fac Upp Upp War Pro Fac Was Fac Ext Cet Arc Hub Res Tes Res Qua Sec Acc Com Total 41075 | 140 927 351 430 626 1168 515 869 781 907 5493 3922 489 1647 1981 79 3723 199 1250 2670 511 821 262 82 618 833 232 2371 652 277 959 603 808 1450 156 2273 Wait 15622 | 16 51 4 1 10 138 52 2 43 2 3090 2955 98 477 847 . 2467 4 298 1249 54 125 17 . 72 274 23 2271 118 34 129 57 43 411 1 189 Move 21969 | 95 782 338 387 559 818 381 842 692 858 2154 870 307 1110 1069 78 1151 166 925 1322 396 638 211 63 435 349 146 61 299 201 595 375 553 750 151 1842 Hop . | . . . . . . . . . . . . . . . . . . . . . . . . . . . . . . . . . . . . Pick Up 338 | 9 11 . 8 6 30 11 1 . 4 49 6 21 2 3 . 26 . 1 10 10 1 3 . 30 2 6 2 15 7 18 7 14 19 . 6 Fast Attach 114 | 5 . 1 1 1 10 . 2 . 3 13 6 1 4 . . 2 1 . 2 5 . . 2 4 1 3 1 2 . 12 . 9 18 . 5 Attach 104 | 2 . . 2 2 6 7 . . . 15 . . 2 . . . 1 . . 1 . 2 1 1 . 2 3 13 1 7 5 7 20 1 3 Detach 86 | . . . . . . . . . . 4 5 . 4 1 . 6 5 6 8 2 5 1 1 1 . . 1 11 . 6 2 4 9 . 4 Swap 415 | . 2 3 2 4 19 18 4 6 4 22 14 23 7 17 1 15 4 6 11 5 6 4 2 13 13 2 2 16 7 37 35 39 51 . 1 Drop 391 | . 9 1 11 4 25 8 3 1 9 58 25 7 15 9 . 20 2 4 12 15 . 2 . 10 10 14 7 16 6 32 3 21 25 . 7 Fire 1810 | 13 72 4 11 40 122 38 15 39 . 84 34 32 25 33 . 35 16 9 56 23 45 22 13 52 48 36 23 153 21 107 119 113 141 3 213 Melee 26 | . . . . . . . . . . . 7 . 1 2 . 1 . 1 . . 1 . . . . . . . . 3 . 5 5 . . Ram . | . . . . . . . . . . . . . . . . . . . . . . . . . . . . . . . . . . . . Kick . | . . . . . . . . . . . . . . . . . . . . . . . . . . . . . . . . . . . . Crush . | . . . . . . . . . . . . . . . . . . . . . . . . . . . . . . . . . . . . Escape Stasis 19 | . . . . . . . . . . . . . . . . . . . . . . . . . 15 . . . . . . . 1 . 3 Rewire 141 | . . . 7 . . . . . . . . . . . . . . . . . . . . . 121 . . . . 13 . . . . . Trap 4 | . . . . . . . . . . 4 . . . . . . . . . . . . . . . . . . . . . . . . . Miscellaneous 36 | . . . . . . . . . 27 . . . . . . . . . . . . . . . . . . 9 . . . . . . . Route ------- -11/Scrapyard -10/Materials (discovered 4 exits: [*Mat x3] / *Min) -10/Mines -10/Exiles -9/Mines (discovered 2 exits: *Mat x2) -8/Materials (discovered 4 exits: *Fac x2 / *Sto x2) -7/Factory (discovered 2 exits: *Low x2) -7/Lower Caves -7/Lower Caves (discovered 2 exits: *Fac / *Zio) -7/Zion (discovered 2 exits: *Dee / [*Pro]) -7/Deep Caves -6/Proximity Caves -6/Factory (discovered 2 exits: Fac / *Low) -6/Lower Caves -6/Lower Caves (discovered 2 exits: *Fac / *Dat) -6/Data Miner -5/Proximity Caves -5/Factory (discovered 5 exits: Fac x3 / *Upp x2) -5/Upper Caves -5/Upper Caves (discovered 2 exits: *Fac / *War) -5/Warlord -4/Proximity Caves -4/Factory -4/Waste -4/Factory (discovered 5 exits: Upp x2 / *Ext x2 / Arm) -4/Extension (discovered 2 exits: *Res / *Cet) -4/Cetus (discovered 2 exits: *Res / *Arc) -4/Archives -4/Hub_04(d) (discovered 4 exits: *Res x4) -3/Research (discovered 3 exits: Res / *Tes x2) -3/Testing -2/Research (discovered 3 exits: *Acc x2 / [*Qua]) -2/Quarantine (discovered 2 exits: Acc / *Sec) -2/Section 7 -1/Access -1/Command (discovered 2 exits: [*Sur x2]) To Fleet Rendezvous History --------- Turn | Location | Event 13 | -11/Scrapyard | Discovered new exit (range 15) 208 | -11/Scrapyard | Entered Materials 320 | -10/Materials | Build established: Mutant 345 | -10/Materials | Central database locked down 399 | -10/Materials | Discovered new exit (range 16) 661 | -10/Materials | Discovered new exit (range 7) 863 | -10/Materials | Discovered new exit (range 4) 1246 | -10/Materials | Discovered new exit (range 17) 1745 | -10/Materials | Entered Mines 1824 | -10/Mines | Deemed a non-threat by the Exiles lab entrance 2015 | -10/Mines | Found the Drone Emporium 2027 | -10/Mines | Found Prototype Device 2027 | -10/Mines | Identified Thief Drone Bay 2211 | -10/Mines | Learned Materials stockpile data 2227 | -10/Mines | Excavation squad dispatched 2227 | -10/Mines | A large section of the Mines collapsed 2303 | -10/Mines | Discovered new exit (range 5) 2310 | -10/Mines | Entered Exiles 2310 | -10/Exiles | Found Exiles lab destroyed 2549 | -10/Exiles | Opened EX-Vault 2560 | -10/Exiles | Found Trap Reconfigurator 2645 | -10/Exiles | Learned location of Zion (-7) 2965 | -10/Exiles | Discovered new exit (range 10) 2978 | -10/Exiles | Entered Mines 2978 | -9/Mines | Accompanied by 1 ally 3733 | -9/Mines | Core integrity fell below 50% 3783 | -9/Mines | Discovered new exit (range 4) 4013 | -9/Mines | Received a Rocket Launcher from a helpful Derelict 4050 | -9/Mines | Discovered new exit (range 7) 4062 | -9/Mines | Assisted by bots powering up and referring to "LRC-V3" 4079 | -9/Mines | Entered Materials 4079 | -8/Materials | Accompanied by 3 allies 4079 | -8/Materials | Evolved 4 slots: Utility x4 4080 | -8/Materials | Identified exit to Storage 5101 | -8/Materials | Discovered new exit (range 16) 5912 | -8/Materials | Build established: Scavenger-Mutant 6285 | -8/Materials | Discovered new exit (range 16) 6479 | -8/Materials | First assault squad dispatched 6525 | -8/Materials | Entered Factory 6525 | -7/Factory | Evolved 2 slots: Power x1, Utility x1 6827 | -7/Factory | Build established: Scavenger-Skirmisher 7057 | -7/Factory | Discovered new exit (range 15) 7126 | -7/Factory | Lost 3 parts (1n2w) 7156 | -7/Factory | Identified exit to Lower Caves 7180 | -7/Factory | Discovered exit to Lower Caves (range 5) 7362 | -7/Factory | Entered Lower Caves 7636 | -7/Lower Caves | Attracted the attention of an 0b10 checkpoint 8185 | -7/Lower Caves | Encountered a Warlord checkpoint 8227 | -7/Lower Caves | Discovered new exit (range 15) 8274 | -7/Lower Caves | Learned Factory terminal intel 8547 | -7/Lower Caves | Learned location of 1 exit from Factory 8765 | -7/Lower Caves | Identified exit to Lower Caves 8768 | -7/Lower Caves | Entered another Lower Caves area 8811 | -7/Lower Caves | Discovered new exit (range 15) 9681 | -7/Lower Caves | Spotted B-75 Beast 9874 | -7/Lower Caves | Learned 4 Factory zone layouts 9996 | -7/Lower Caves | Discovered new exit (range 8) 10007 | -7/Lower Caves | Identified exit to Zion 10037 | -7/Lower Caves | Entered Zion 10109 | -7/Zion | System corruption cleaned by Quarantine Array 10149 | -7/Zion | Given the Hacking Drone Bay 10149 | -7/Zion | Found Prototype Device 10236 | -7/Zion | Learned location of Extension (-4) 10259 | -7/Zion | Found CR-A16's Pointy Stick 10293 | -7/Zion | Discovered new exit (range 12) 10500 | -7/Zion | Gained Derelict followers 10797 | -7/Zion | Discovered new exit (range 5) 11358 | -7/Zion | Build established: Scavenger-Mutant 11447 | -7/Zion | Found Prototype Device 11616 | -7/Zion | Saw the warning signs outside the Deep Caves entrance 11619 | -7/Zion | Identified exit to Deep Caves 11748 | -7/Zion | Entered Deep Caves 11748 | -7/Deep Caves | Accompanied by 5 allies 12126 | -7/Deep Caves | Found Surveybot 24 Chip 12131 | -7/Deep Caves | Found Unknown Device 12132 | -7/Deep Caves | Identified Surveybot 24 Scanner 12302 | -7/Deep Caves | Identified Bomb Factory No. 2 12675 | -7/Deep Caves | Z-Facility disabled 12755 | -7/Deep Caves | Attacked by Z-Imprinter 12804 | -7/Deep Caves | Lost 4 allies 12805 | -7/Deep Caves | Destroyed Z-Imprinter 12833 | -7/Deep Caves | Lost 5 parts (1p1n2u1w) 13068 | -7/Deep Caves | Lost 6 parts (1p1n2u2w) 13087 | -7/Deep Caves | Found Prototype Protection 13087 | -7/Deep Caves | Identified Zio. Weapon Casing 13121 | -7/Deep Caves | Found Zio. Weapon Casing 13340 | -7/Deep Caves | Identified Hacking Drone Bay 13360 | -7/Deep Caves | Found Zio. Weapon Casing 13363 | -7/Deep Caves | Found Zio. Weapon Casing 13492 | -7/Deep Caves | Found Prototype Protection 13492 | -7/Deep Caves | Identified Zio. Heavy Carapace 13514 | -7/Deep Caves | Found Zio. Heavy Carapace 14062 | -7/Deep Caves | Discovered new exit (range 7) 14290 | -7/Deep Caves | Found Zio. Heavy Carapace 14320 | -7/Deep Caves | Found Zio. Weapon Casing 15340 | -7/Deep Caves | Build established: Mutant 15529 | -7/Deep Caves | Spotted AG-04749 15537 | -7/Deep Caves | Destroyed AG-04749 18513 | -7/Deep Caves | Spotted AG-81660 18588 | -7/Deep Caves | Destroyed AG-81660 18661 | -7/Deep Caves | Triggered Deep Caves wall 18661 | -7/Deep Caves | Spotted AS-87362 18661 | -7/Deep Caves | Spotted AS-99263 18667 | -7/Deep Caves | Core integrity fell below 50% 18673 | -7/Deep Caves | Destroyed AS-99263 18676 | -7/Deep Caves | Destroyed AS-87362 18697 | -7/Deep Caves | Destroyed 36 combat bots 18699 | -7/Deep Caves | Exposed GOLEM chamber 18703 | -7/Deep Caves | Found GOLEM Unit 19007 | -7/Deep Caves | Build established: Golem 19064 | -7/Deep Caves | Found GOLEM Unit 19094 | -7/Deep Caves | Found GOLEM Unit 19537 | -7/Deep Caves | Entered Proximity Caves 21795 | -6/Proximity Caves | Spotted B-75 Beast 21826 | -6/Proximity Caves | Revealed the true nature of CR-A16's Pointy Stick 21831 | -6/Proximity Caves | Destroyed B-75 Beast 22756 | -6/Proximity Caves | Attracted the attention of an 0b10 checkpoint 23069 | -6/Proximity Caves | Learned Factory terminal intel 23403 | -6/Proximity Caves | Core integrity fell below 20% 24041 | -6/Proximity Caves | Discovered new exit (range 11) 24434 | -6/Proximity Caves | Entered Factory 24434 | -6/Factory | Evolved 2 slots: Utility x2 24435 | -6/Factory | Identified exit to Lower Caves 24436 | -6/Factory | Identified exit to Factory 24437 | -6/Factory | Loaded intel: 25 terminal locations 25231 | -6/Factory | Entered Lower Caves 25243 | -6/Lower Caves | Learned 8 Factory zone layouts 26618 | -6/Lower Caves | Encountered a Warlord checkpoint 26642 | -6/Lower Caves | Identified exit to Lower Caves 27628 | -6/Lower Caves | Spotted B-75 Beast 27750 | -6/Lower Caves | Destroyed B-75 Beast 28079 | -6/Lower Caves | Entered another Lower Caves area 28310 | -6/Lower Caves | Discovered exit to Factory (range 13) 28470 | -6/Lower Caves | Attracted the attention of an 0b10 checkpoint 29176 | -6/Lower Caves | Learned location of 2 exits from Factory 29195 | -6/Lower Caves | Learned 4 Factory zone layouts 29628 | -6/Lower Caves | Discovered new exit (range 15) 29758 | -6/Lower Caves | Spotted B-75 Beast 29796 | -6/Lower Caves | Destroyed B-75 Beast 31308 | -6/Lower Caves | Entered Data Miner 31308 | -6/Data Miner | Discovered new exit (range 6) 31348 | -6/Data Miner | Met Data Miner 31392 | -6/Data Miner | Learned location of Section 7 (-2) 31392 | -6/Data Miner | Acquired the access code to Warlord's prototype stash 31426 | -6/Data Miner | Received God Mode back door access code from Data Miner 31474 | -6/Data Miner | Entered Proximity Caves 33305 | -5/Proximity Caves | Spotted B-75 Beast 33313 | -5/Proximity Caves | Destroyed B-75 Beast 33475 | -5/Proximity Caves | Learned 12 Factory zone layouts 34341 | -5/Proximity Caves | Learned 4 Factory zone layouts 34388 | -5/Proximity Caves | Build established: Infiltrator-Golem 34990 | -5/Proximity Caves | Discovered exit to Factory (range 9) 35858 | -5/Proximity Caves | Build established: Golem 36307 | -5/Proximity Caves | Build established: Infiltrator-Golem 36553 | -5/Proximity Caves | Entered Factory 36553 | -5/Factory | Evolved 2 slots: Power x1, Utility x1 36554 | -5/Factory | Identified exit to Upper Caves 36555 | -5/Factory | Identified exit to Factory 36557 | -5/Factory | Loaded intel: 26 terminal locations 36962 | -5/Factory | Entered Upper Caves 37879 | -5/Upper Caves | Spotted B-75 Beast 37990 | -5/Upper Caves | Destroyed B-75 Beast 38272 | -5/Upper Caves | Build established: Golem 38885 | -5/Upper Caves | Discovered new exit (range 13) 39112 | -5/Upper Caves | Entered another Upper Caves area 39156 | -5/Upper Caves | Attracted the attention of an 0b10 checkpoint 39445 | -5/Upper Caves | Learned location of Armory (-4) 39445 | -5/Upper Caves | Discovered new exit (range 6) 39979 | -5/Upper Caves | Discovered exit to Factory (range 5) 42427 | -5/Upper Caves | Attracted the attention of an 0b10 base 42895 | -5/Upper Caves | Learned Factory garrison access intel 42895 | -5/Upper Caves | Learned 6 Proximity Caves zone layouts 42939 | -5/Upper Caves | Entered Warlord 43168 | -5/Warlord | Found Prototype Device 43168 | -5/Warlord | Identified Minesniffer Drone Bay 43300 | -5/Warlord | Visited the Vortex Lab 43306 | -5/Warlord | Found Prototype Energy Gun 43306 | -5/Warlord | Identified Vortex Rifle 43311 | -5/Warlord | Warlord's base attacked by MAIN.C 43316 | -5/Warlord | Found Prototype Energy Gun 43316 | -5/Warlord | Identified Vortex Rail 43325 | -5/Warlord | Found Vortex Rifle 43424 | -5/Warlord | Met Warlord 43447 | -5/Warlord | Opened Warlord's prototype stash 43455 | -5/Warlord | Found Prototype Reactor 43455 | -5/Warlord | Identified Vortex Chain Reactor 43465 | -5/Warlord | Found Prototype Processor 43473 | -5/Warlord | Found Prototype Processor 43508 | -5/Warlord | Identified Exp. Targeting Computer 43544 | -5/Warlord | Identified Exp. Armor Integrity Analyzer 43661 | -5/Warlord | Warlord forces counterattacked 43672 | -5/Warlord | Spotted Striker 43674 | -5/Warlord | Destroyed Striker 43676 | -5/Warlord | Spotted Striker 43677 | -5/Warlord | Destroyed Striker 43701 | -5/Warlord | Spotted Executioner 43744 | -5/Warlord | Spotted Executioner 43744 | -5/Warlord | Spotted B-86 Titan 43785 | -5/Warlord | Lost 11 allies 43794 | -5/Warlord | Discovered new exit (range 14) 43819 | -5/Warlord | Entered Proximity Caves 44125 | -4/Proximity Caves | Learned Research emergency access door positions 44338 | -4/Proximity Caves | Learned 4 Research zone layouts 44758 | -4/Proximity Caves | Spotter reported a threat 45099 | -4/Proximity Caves | Spotted B-86 Titan 45108 | -4/Proximity Caves | Destroyed B-86 Titan 45150 | -4/Proximity Caves | Attracted the attention of an 0b10 checkpoint 45421 | -4/Proximity Caves | Entered Factory 45421 | -4/Factory | Evolved 2 slots: Propulsion x2 45422 | -4/Factory | Loaded intel: 4 garrison access locations 45876 | -4/Factory | Sucked down chute 45876 | -4/Factory | Entered Waste 45891 | -4/Waste | EMP discharged 45909 | -4/Waste | Spotted C-40 Crusher 45914 | -4/Waste | Destroyed C-40 Crusher 45919 | -4/Waste | Spotted C-40 Crusher 45923 | -4/Waste | Destroyed C-40 Crusher 45925 | -4/Waste | Spotted C-40 Crusher 45929 | -4/Waste | Spotted C-40 Crusher 45929 | -4/Waste | Spotted C-40 Crusher 45935 | -4/Waste | Spotted C-40 Crusher 45935 | -4/Waste | Destroyed C-40 Crusher 45948 | -4/Waste | Destroyed C-40 Crusher 45949 | -4/Waste | Crushed by Compactor (0 parts destroyed, 2 dropped) 45952 | -4/Waste | Crushed by Compactor (1 part destroyed) 45954 | -4/Waste | Destroyed C-40 Crusher 45957 | -4/Waste | Destroyed C-40 Crusher 45991 | -4/Waste | EMP discharged 45991 | -4/Waste | System corruption reached 10% 46008 | -4/Waste | Discovered new exit (range 15) 46034 | -4/Waste | Entered Factory 46657 | -4/Factory | Identified exit to Upper Caves 46657 | -4/Factory | Identified exit to Extension 46657 | -4/Factory | Identified exit to Armory 47075 | -4/Factory | Entered Extension 47252 | -4/Extension | Rescued a captive Derelict 47252 | -4/Extension | Rescued a captive Derelict 47476 | -4/Extension | Rescued a captive Derelict 47569 | -4/Extension | Spotted B-86 Titan 47583 | -4/Extension | Destroyed B-86 Titan 47591 | -4/Extension | Spotted B-86 Titan 47598 | -4/Extension | Destroyed B-86 Titan 47626 | -4/Extension | Lost 3 allies 47646 | -4/Extension | Rescued a captive Derelict 47732 | -4/Extension | Build established: Commander-Golem 47814 | -4/Extension | Rescued a captive Derelict 47815 | -4/Extension | Rescued a captive Derelict 47825 | -4/Extension | First assault squad dispatched 47912 | -4/Extension | Rescued A7 47915 | -4/Extension | Lost 9 allies 47977 | -4/Extension | Rescued a captive Derelict 48031 | -4/Extension | Discovered new exit (range 10) 48033 | -4/Extension | Discovered new exit (range 6) 48044 | -4/Extension | Identified exit to Cetus 48049 | -4/Extension | Identified exit to Research 48061 | -4/Extension | Found Quantum Capacitor 48168 | -4/Extension | Build established: Golem 48325 | -4/Extension | Entered Cetus 48325 | -4/Cetus | Accompanied by 6 allies (A7) 48330 | -4/Cetus | Acquired a Cetus Manufacturing Module code from A7 48372 | -4/Cetus | Spotted Cetus Guard 48372 | -4/Cetus | Spotted Cetus Guard 48377 | -4/Cetus | Allies destroyed Cetus Guard 48378 | -4/Cetus | Destroyed Cetus Guard 48383 | -4/Cetus | Spotted Cetus Guard 48385 | -4/Cetus | Destroyed Cetus Guard 48412 | -4/Cetus | Lost 3 allies 48497 | -4/Cetus | Started Cetus Manufacturing Module 48512 | -4/Cetus | Escorted A7 to Cetus Mainframe 48522 | -4/Cetus | Manufactured an Enhanced Grunt 48537 | -4/Cetus | Discovered new exit (range 16) 48547 | -4/Cetus | Manufactured an Enhanced Grunt 48572 | -4/Cetus | Manufactured an Enhanced Grunt 48584 | -4/Cetus | Spotted Cetus Guard 48588 | -4/Cetus | Destroyed Cetus Guard 48597 | -4/Cetus | Manufactured an Enhanced Grunt 48618 | -4/Cetus | Discovered exit to Research (range 16) 48622 | -4/Cetus | Manufactured an Enhanced Grunt 48636 | -4/Cetus | Met Revision 17 48743 | -4/Cetus | Identified exit to Archives 48746 | -4/Cetus | Entered Archives 48746 | -4/Archives | Accompanied by 8 allies (A7) 48751 | -4/Archives | Received a hacking code to weaken MAIN.C 48914 | -4/Archives | Build established: Scavenger-Golem 48959 | -4/Archives | Discovered new exit (range 16) 48992 | -4/Archives | Identified exit to Hub_04(d) 51214 | -4/Archives | Entered Hub_04(d) 51214 | -4/Hub_04(d) | Accompanied by 6 allies 51415 | -4/Hub_04(d) | Lost 6 allies 51477 | -4/Hub_04(d) | Lost 3 parts (3u) 51479 | -4/Hub_04(d) | Discovered exit to Research (range 18) 51494 | -4/Hub_04(d) | Found Prototype Device 51655 | -4/Hub_04(d) | Identified Exp. Thermal Shield 51761 | -4/Hub_04(d) | Network Hub disabled 51832 | -4/Hub_04(d) | Network Hub disabled 52047 | -4/Hub_04(d) | Build established: Scavenger-Mutant 52075 | -4/Hub_04(d) | Spotted Lightning 52075 | -4/Hub_04(d) | Spotted Lightning 52076 | -4/Hub_04(d) | Spotted Lightning 52085 | -4/Hub_04(d) | Network Hub disabled 52086 | -4/Hub_04(d) | Destroyed Lightning 52094 | -4/Hub_04(d) | Destroyed Lightning 52100 | -4/Hub_04(d) | Destroyed Lightning 52120 | -4/Hub_04(d) | Found Prototype Device 52121 | -4/Hub_04(d) | Identified Exp. Phase Shifter 52128 | -4/Hub_04(d) | Found Prototype Device 52131 | -4/Hub_04(d) | Identified Exp. EM Disruption Field 52212 | -4/Hub_04(d) | Spotted Lightning 52212 | -4/Hub_04(d) | Spotted Lightning 52216 | -4/Hub_04(d) | Spotted Lightning 52222 | -4/Hub_04(d) | Destroyed Lightning 52247 | -4/Hub_04(d) | Destroyed Lightning 52267 | -4/Hub_04(d) | Destroyed Lightning 52302 | -4/Hub_04(d) | Network Hub disabled 52362 | -4/Hub_04(d) | Entered Research 52362 | -3/Research | Evolved 2 slots: Propulsion x2 52363 | -3/Research | Identified exit to Testing 52395 | -3/Research | Found Prototype Device 52562 | -3/Research | Revision forces began assault on 0b10 52648 | -3/Research | Discovered new exit (range 9) 52659 | -3/Research | Lost 3 allies 52688 | -3/Research | Build established: Scavenger-Skirmisher 52760 | -3/Research | Entered Testing 52798 | -3/Testing | Identified exit to Research 52824 | -3/Testing | Identified Adv. EM Disruption Field 52893 | -3/Testing | Found Prototype Ballistic Cannon 52930 | -3/Testing | Identified Perforator 53056 | -3/Testing | Spotted PH-PBQQEEE26Z 53079 | -3/Testing | Rewired PH-PBQQEEE26Z 53150 | -3/Testing | Garrison activated, responded to threat 53216 | -3/Testing | Found Prototype Protection 53523 | -3/Testing | Spotted Striker 53670 | -3/Testing | Found Quantum Capacitor 53933 | -3/Testing | Found Prototype Device 53933 | -3/Testing | Identified Exp. Shield Generator 53937 | -3/Testing | Identified SHELL Armor 54008 | -3/Testing | Spotted PD-HJ456U2VGV 54089 | -3/Testing | Found Prototype Device 54138 | -3/Testing | Identified 2N-1CE's Frost Array 54149 | -3/Testing | Found Prototype Hackware 54160 | -3/Testing | Entered Research 54160 | -2/Research | Warlord forces began assault on 0b10 54160 | -2/Research | Evolved 2 slots: Utility x2 54270 | -2/Research | Research machine network offline 54324 | -2/Research | Discovered new exit (range 18) 54350 | -2/Research | Identified exit to Access 54477 | -2/Research | Borebot progress halted 54542 | -2/Research | Spotted Striker 54548 | -2/Research | Destroyed Striker 54560 | -2/Research | Spotted Executioner 54568 | -2/Research | Spotted Striker 54573 | -2/Research | Destroyed Striker 54593 | -2/Research | Destroyed Executioner 54622 | -2/Research | Destroyed 13 combat bots 54622 | -2/Research | Borebot progress halted 54727 | -2/Research | Spotted Striker 54780 | -2/Research | Found Prototype Device 54781 | -2/Research | Identified Adv. Kinecellerator 54787 | -2/Research | Borebot progress halted 54810 | -2/Research | Met up with Warlord 54811 | -2/Research | Build established: Scavenger-Mutant 54855 | -2/Research | Discovered exit to Access (range 22) 54981 | -2/Research | Discovered new exit (range 24) 55038 | -2/Research | Entered Quarantine 55146 | -2/Quarantine | Discovered exit to Access (range 22) 55192 | -2/Quarantine | Found Alien Impact Weapon 55445 | -2/Quarantine | Found Prototype Device 55446 | -2/Quarantine | Identified Thermal Barrier 55553 | -2/Quarantine | Found Alien Artifact 55591 | -2/Quarantine | Identified Phase Redirector 55602 | -2/Quarantine | Found Alien Energy Cannon 55757 | -2/Quarantine | Found Alien Artifact 55767 | -2/Quarantine | Found Alien Artifact 55770 | -2/Quarantine | Identified Transdimensional Reconstructor 55770 | -2/Quarantine | Warped through subspace 55772 | -2/Quarantine | Found Transdimensional Reconstructor 55772 | -2/Quarantine | Warped through subspace 55798 | -2/Quarantine | Found Transdimensional Reconstructor 55804 | -2/Quarantine | Warped through subspace 55811 | -2/Quarantine | Found Transdimensional Reconstructor 56036 | -2/Quarantine | Identified Core Stripper 56041 | -2/Quarantine | Spotted Fortress 56058 | -2/Quarantine | Destroyed Fortress 56073 | -2/Quarantine | Found Vortex Chain Reactor 56083 | -2/Quarantine | Found Prototype Device 56083 | -2/Quarantine | Identified Exp. Force Field 56205 | -2/Quarantine | Discovered new exit (range 5) 56209 | -2/Quarantine | Identified exit to Section 7 56214 | -2/Quarantine | Entered Section 7 56240 | -2/Section 7 | Spotted S7 Guard 56251 | -2/Section 7 | Found Alien Artifact 56256 | -2/Section 7 | Destroyed S7 Guard 56257 | -2/Section 7 | Identified Core Membrane 56257 | -2/Section 7 | Installed Core Membrane, gained immunity to corruption 56377 | -2/Section 7 | Spotted S7 Guard 56400 | -2/Section 7 | Destroyed S7 Guard 56410 | -2/Section 7 | Found Alien Artifact 56411 | -2/Section 7 | Identified Core Physics Calibrator 56439 | -2/Section 7 | Found Alien Artifact 56442 | -2/Section 7 | Identified Integrated Reactor 56442 | -2/Section 7 | Installed Integrated Reactor, increased core energy generation (+10) 56503 | -2/Section 7 | Build established: Skirmisher 56760 | -2/Section 7 | Destroyed 7 combat bots 56882 | -2/Section 7 | Found Alien Artifact 56882 | -2/Section 7 | Identified Integrated Dissipator 56882 | -2/Section 7 | Installed Integrated Dissipator, increased core heat dissipation (+20) 56963 | -2/Section 7 | Build established: Mutant 57056 | -2/Section 7 | Discovered exit to Access (range 24) 57069 | -2/Section 7 | Found Alien Artifact 57069 | -2/Section 7 | Identified Integrity Redistributor 57069 | -2/Section 7 | Used Integrity Redistributor, redistributed integrity from core (-245) 57080 | -2/Section 7 | Identified Dimensional Node Initializer 57080 | -2/Section 7 | Initialized slip node 57295 | -2/Section 7 | Build established: Skirmisher 57297 | -2/Section 7 | Spotted S7 Guard 57304 | -2/Section 7 | Identified Core Cannon 57320 | -2/Section 7 | Crushed by falling debris 57348 | -2/Section 7 | Found Alien Artifact 57348 | -2/Section 7 | Identified Core Reset Matrix 57348 | -2/Section 7 | Used Core Reset Matrix 57352 | -2/Section 7 | Sensed 20 artifacts in vicinity 57410 | -2/Section 7 | Found LRC Matter Compressor 57411 | -2/Section 7 | Installed LRC Matter Compressor, increased matter storage capacity (+125) 57420 | -2/Section 7 | Found LRC Inertial Stabilizer 57420 | -2/Section 7 | Installed LRC Inertial Stabilizer, increased mass support (+10) 57424 | -2/Section 7 | Found LRC Matter Compressor 57424 | -2/Section 7 | Installed LRC Matter Compressor, increased matter storage capacity (+125) 57481 | -2/Section 7 | Found Integrated Dissipator 57482 | -2/Section 7 | Installed Integrated Dissipator, increased core heat dissipation (+20) 57692 | -2/Section 7 | Spotted Executioner 57701 | -2/Section 7 | Spotted Executioner 57709 | -2/Section 7 | Destroyed Executioner 57710 | -2/Section 7 | Core integrity fell below 50% 57719 | -2/Section 7 | Destroyed Executioner 57734 | -2/Section 7 | Found Prototype Processor 57790 | -2/Section 7 | Integrated with Sigix Exoskeleton 57791 | -2/Section 7 | Identified Exp. Core Analyzer 57853 | -2/Section 7 | Spotted Executioner 57853 | -2/Section 7 | Spotted Executioner 57881 | -2/Section 7 | Found Integrated Dissipator 57881 | -2/Section 7 | Installed Integrated Dissipator, increased core heat dissipation (+20) 57891 | -2/Section 7 | Found Integrated Reactor 57891 | -2/Section 7 | Installed Integrated Reactor, increased core energy generation (+10) 57895 | -2/Section 7 | Warped through subspace to slip node 57896 | -2/Section 7 | Discovered exit to Access (range 18) 57907 | -2/Section 7 | Entered Access 57907 | -1/Access | Evolved 2 slots: Utility x2 57912 | -1/Access | Emitted hypermatrix ping 57917 | -1/Access | Assembled emerged from beneath the floor 57942 | -1/Access | Assembled emerged from beneath the floor 57948 | -1/Access | Discovered new exit (range 16) 57958 | -1/Access | Entered Command 57963 | -1/Command | Emitted hypermatrix ping 57968 | -1/Command | Assembled emerged from beneath the floor 58011 | -1/Command | Spotted Combat Programmer 58012 | -1/Command | Spotted Combat Programmer 58016 | -1/Command | Destroyed Combat Programmer 58024 | -1/Command | Spotted M Guard 58026 | -1/Command | Spotted M Guard 58038 | -1/Command | Destroyed Combat Programmer 58053 | -1/Command | Destroyed M Guard 58072 | -1/Command | Destroyed M Guard 58072 | -1/Command | All MAIN.C guards destroyed 58080 | -1/Command | Build established: Alien-Sigix 58089 | -1/Command | Met MAIN.C 58090 | -1/Command | 0b10 Conduit disabled 58114 | -1/Command | MAIN.C's shell transforms into a squad of autonomous robots 58114 | -1/Command | Destroyed MAIN.C Shell 58114 | -1/Command | Spotted M Shell/Atk 58114 | -1/Command | Spotted M Shell/Def 58114 | -1/Command | Spotted M Shell/Atk 58114 | -1/Command | Spotted M Shell/Atk 58114 | -1/Command | Spotted M Shell/Def 58114 | -1/Command | Spotted M Shell/Atk 58114 | -1/Command | Spotted M Shell/Def 58114 | -1/Command | MAIN.C activated Command garrisons 58117 | -1/Command | Spotted M Shell/Def 58119 | -1/Command | Sigix Exoskeleton integrity reduced to 80% 58124 | -1/Command | Discovered new exit (range 16) 58172 | -1/Command | Sigix Exoskeleton integrity reduced to 60% 58181 | -1/Command | Destroyed MAIN.C 58184 | -1/Command | Discovered new exit (range 25) 58184 | -1/Command | Discovered new exit (range 137) 58184 | -1/Command | Extracted map data and part IDs from MAIN.C's data core 58184 | -1/Command | Found Zero-point Reactor 58288 | -1/Command | Destroyed M Shell/Atk 58297 | -1/Command | Destroyed M Shell/Atk 58303 | -1/Command | Destroyed M Shell/Atk 58307 | -1/Command | Found Adv. Particle Accelerator 58313 | -1/Command | Found Exp. Targeting Computer 58341 | -1/Command | Destroyed M Shell/Atk 58348 | -1/Command | Spotted B-99 Colossus 58468 | -1/Command | Destroyed B-99 Colossus 58477 | -1/Command | Discovered new exit (range 37) 58477 | -1/Command | Discovered new exit (range 87) 58477 | -1/Command | Extracted map data and part IDs from MAIN.C's data core 58529 | -1/Command | Destroyed B-99 Colossus 58537 | -1/Command | Found Exp. Core Analyzer 58604 | -1/Command | Assembled emerged from beneath the floor 58646 | -1/Command | Assembled emerged from beneath the floor 58756 | -1/Command | Assembled emerged from beneath the floor 58786 | -1/Command | Assembled emerged from beneath the floor 58833 | -1/Command | Assembled emerged from beneath the floor 58867 | -1/Command | Assembled emerged from beneath the floor 59004 | *** | Heading to fleet! Last Messages --------------- 58936_ Quantum Shear penetrates Earth. 58936_ Quantum Shear penetrates Warlord KY-Z71. 58945_ Destroyed Adv. Force Field. 58947_ Quantum Shear penetrates Warlord KY-Z71. 58951_ Destroyed Quantum Rifle. 58953_ Quantum Shear penetrates Warlord KY-Z71. 58955_ Destroyed Power Amplifier. 58955_ Quantum Shear penetrates Warlord KY-Z71. 58957_ Warlord KY-Z71 destroyed. 58959_ Quantum Shear penetrates Warlord D3-CKR. 58963_ Destroyed Matter Filter. 58965_ Quantum Shear penetrates Warlord D3-CKR. 58968_ The unstable cave ceiling collapses. 58968_ 198 Matter crushed. 58969_ Quantum Shear penetrates Warlord D3-CKR. 58969_ Warlord D3-CKR destroyed. 58971_ Quantum Shear penetrates Warlord 4Z-XS3. 58982_ Warlord 4Z-XS3 destroyed. 59002_ Extracted 4 energy. 59002_ The Access Shell folds into the floor. Map ----- +----------------------------------------------------+ | ### ### #### #[[!==%[=*% " !! ### | | ########## #### #!!!!![[%!!! # !! ### | | ########## "### *#%!!==[*!!!! # !! ### | | ###########"#######"### !#%[|*%=!*!!! # ### | | ##### = #### ##= =*+=%%%=!%[%!% " ! # # | | ##### ! ##### ##%* =##=%*!######+###"###### | | ##### ! %= ########=[ =###!## # # ##### | | ##### =%* ######## %=[##### ## """ + # | | ##### ! ########++=+=####### """" # # ! | | ##### #######^^^% ["###### """" ## "# | | ### # [ #######^^* %!##### T"" ## "# | | ########+############ ^==!!%%!##### ##="# | | #### ##*%%!=##########^^^/%==;#############!"# | | #######=*!![#########=^^*=!!%;############[*##+### | | #######[%[!=##########^^ =[=!;###########=!=%!!### | | #######%==!!#########!%^%*%^%"# #### ![!%=*=### | | #######[%#############^^^[ ^*"###### =[!!| ### | | #######=%# ##########%%%^=!%!"###### [!![ ### | | #######%[############;^^^ ^######## %== ## | | #######==##########%%[%!!! %%##### +%# = | | #######!%##########% ##### # # ## | | #######%!# ###% ^^^^^ % ;########### ##+### | | #######!!# ### ##### # # | | #######%=# ! ### ^ ##### # # | | #######=!# ### ^ "" % ##### = + # | | #######[%#[ ### ^ "X ##### # # | | #######%[#*[= ### ^ ##### # # | | #######!%#[= ### ^ ##### # # ! | | # ###=!+[![ ### ^^^^^^ ############ ###### | | # ###=%#=%!! =### ############ = | | # #*#/[#*=! ### ############ | | !# * =*%%# ########################## | | %= %=%*=*# ! ######################## ##= *= | | ![ ====[# [%= #! ###################==%!%= | | %/ =%=*# ![ % %[%!%% ==%=!=%! %[[%!!%=!! | | %!*%[ [[!"###+ ## %# [%[ !%**= !#####+#### | | = ##% "### # # # !* !*!!! ### =![ # | | = # "### # # !%! ==%!= ### =%[ # | | # ###%=#### ## ## =*= ** ""### !! # | | # ###==#### # [%=%= ""### ! + | | #######=%#### =!"" ""### # | | ####### #### """ T## # | | ####### #### """" ""########## | | ####### #### "" ""########## | | ####### #### ""########## | | ####### #### ########## | | ####### %#### = ########## | | ####### !#### !%[ ########## | | #######% #### ### * ##### ########### | | ####### ### ##### ########### | +----------------------------------------------------+ Best States ------------- Heat Dissipation 259 Coolant Potential 120 Energy Generation 95 Energy Capacity 1950 Matter Stores 550 Matter Capacity 550 Sight Range 16 Robot Scan Range 16 Terrain Scan Range 24 Terrain Scan Density 2010 Jamming Range 16 Cloak Strength 3 Additional Mass Support 20 Armor Coverage 1800 Resistance: KI 50 Resistance: TH 50 Resistance: EX 50 Resistance: EM 75 Resistance: I 50 Resistance: S 50 Resistance: P 50 Weapon Shielding 100 Weapon Cycling 25 Phase Shifting 20 Evasion (%) 69 Targeting Accuracy 20 Target Analysis 8 Core Analysis 8 Armor Integrity Analysis 50 Recoil Reduction 6 Particle Charging 50 Item Schematics ----------------- Centrium Light Armor Plating | -2/Section 7 | Archive Prc. Phase Gun | -2/Section 7 | Archive Quantum Shading Machine | -2/Section 7 | Archive Robot Schematics ------------------ None Fabricated ------------ Nothing Alien Tech Used ----------------- Phase Redirector Transdimensional Reconstructor Core Stripper Core Membrane Core Physics Calibrator Integrated Reactor Integrated Dissipator Integrity Redistributor Dimensional Node Initializer Core Cannon Core Reset Matrix LRC Matter Compressor LRC Inertial Stabilizer Sigix Exoskeleton Sigix Sheargun Achievements -------------- None Challenges ------------ None Game ------ Seed MatterHeatConstruct Manual? 0 Play Time 10:03:00 Cumulative 557.5 hours Start 2024.05.30 @ 12:29:03 End 2024.06.01 @ 20:26:41 Sessions 51 Manual Loads 0 Difficulty Rogue Special Mode None Game No. 110 Rogue 103 Adventurer 1 Explorer 6 Win Type 2 Total 47 Types 16/4/15/1/1/1/7/1/1 Lore% 89 Gallery% 92 Achievement% 87 Wizard Run 0 Options --------- Layout 0 ASCII 0 Keyboard 0 Movement Mouse Keybinds 0 Fullscreen 1 Font 24/Smallcaps Map View 76x50 Zoom Use 0% Tactical HUD 1 Map Filters NONE Filters NONE Steam 1 RUN: f30e1c86-bd19-4b68-9a61-9c0e7395f767